{"text_format":"1","workbook":"xlsx","n_sheets":14,"sheets":["Naslovna","1. Analiza poslovanja","2. Analiza tržišta","3. Prihodi od prodaje","4. Rashodi poslovanja","5. Zaposlenici","6. Ulaganja i amortizacija","7. Izvori financiranja","8. Plan otplate","9. Postojeći krediti","10. Financijski pokazatelji","Management case","Bank case","Help"],"not_rendered":{"charts":0,"images":3,"macros":1,"external_links":0,"defined_names":13,"comments":0,"pivot_tables":0},"unopened":[],"bounds":{"document_bytes":16777216,"sheet_cells":100000,"rows_first":2000,"rows_last":500,"rows_between":2000,"halvings":0,"cell_chars":16384,"cell_head_chars":4096},"cells_cut":0,"cells_raw":0,"read":"whole","date_system":"1900"}

{"sheet":"Naslovna","index":0,"n_rows":35,"n_cols":4,"rows_kept":35,"cut":false,"hidden":false,"merged":[[1,3,2,13],[31,3,31,4],[31,5,31,13],[28,3,28,4],[29,3,29,4],[28,5,28,13],[29,5,29,13],[30,5,30,13],[30,3,30,4],[3,3,3,13],[5,3,25,13]]}
[]
[null,null,null,"Poslovni plan"]
[]
[null,null,null,"Poduzetnički starter"]
[]
[null,null,null,"Poštovani korisnici,\n\ndobro došli u program Korak po korak.\nPred vama se nalazi alat za izradu poslovnog plana. \n\nNa vrlo jednostavan način, ovaj alat Vam omogućuje  predstavljanje vaše poduzetničke ideje, poslovnog modela i ostalih ključnih informacija. \nNa temelju predstavljenih informacija, Banka donosi odluku o  financiranju Vašeg poduzetničkog pothvata. \n       \nSastoji se od opisnog i numeričkog dijela.  U opisnom dijelu, kroz formu pitanja-odgovor vodimo vas kroz predstavljanje bitnih informacija Vašeg pothvata. U numeričkom dijelu pronaći ćete tablice u koje unosite osnovne podatke a one same računaju potrebno.\n\nSlijede osnovna uputstva za unos:\nPolja plave boje su predviđena za upisivanje pojmova. Polja sive boje su predviđena za unošenje numeričkih vrijednosti.  \nPreostala (bijela) polja u tablici bit će popunjena automatskim prijenosom podataka na temelju zadanih formula. \nDodatna objašnjenja pojedinih koraka u tablicama, pronaći ćete u žutom kvadratiću s uputama.\n\nPredlažemo vam odgovaranje jednostavnim i kratkim rečenicama. Ako zapnete, slobodno nas kontaktirajte za pomoć!\nZa financiranje možemo razmatrati poslovne planove koji su potpuno ispunjeni, i u opisom i numeričkom dijelu. \nNepotpune  ili djelomično ispunjene poslovne planove, nažalost, ne možemo razmatrati. \n\nŽelimo vam uspješne prve poduzetničke korake i računajte na našu podršku!\n\nKontakti za slučaj da zapnete u koracima: \nBarbara (Rijeka)  +385 72 37 5407 i Luka (Zagreb)  +385 72 37 2429\nili nam pišite na mail starter@erstebank.com"]
[]
[]
[]
[]
[]
[]
[]
[]
[]
[]
[]
[]
[]
[]
[]
[]
[]
[]
[]
[]
[]
[]
[null,null,null,"Naziv obrta"]
[null,null,null,"OIB obrta"]
[null,null,null,"Datum osnivanja obrta"]
[null,null,null,"Ime i prezime vlasnika"]
[]
[]
[null,null,null,"Sažetak poslovnog plana"]

{"sheet":"1. Analiza poslovanja","index":1,"n_rows":108,"n_cols":7,"rows_kept":108,"cut":false,"hidden":false,"merged":[[91,2,91,6],[0,2,0,6],[27,2,27,6],[43,2,43,6],[59,2,59,6],[75,2,75,6],[11,2,11,6]]}
[null,null,"Tablica 1 - Informacije o poduzetniku"]
[null,null,"Podaci o vlasničkoj i upravljačkoj strukturi*",1,2,3,4]
[null,null,"Ime i prezime"]
[null,null,"OIB"]
[null,null,"Stručna sprema\n(odabrati NKV, KV, SSS, VŠS, VSS, MAG, DR)"]
[null,null,"Zvanje"]
[null,null,"Uloga u poduzeću/obrtu"]
[null,null,"Povezane osobe\nJeste li već imali ili trenutačno imate još neko poduzeće/obrt u vlasništvu?"]
[null,null,"* Svaki stupac u tablici odnosi se na jednog vlasnika."]
[]
[]
[null,null,"1.1. Za osobe navedene u tablici broj 1 navedite dosadašnje radno iskustvo (za sva prethodna zaposlenja navesti godine od-do, naziv poslodavca\ni rano mjesto) i neformalno obrazovanje (navesti ako ste pohađali tečajeve, seminare i slične edukacije bitne za obavljanje djelatnosti)"]
[]
[]
[]
[]
[]
[]
[]
[]
[]
[]
[]
[]
[]
[]
[]
[null,null,"1.2. Kako ste došli na ideju o pokretanju vlastitog poslovanja?"]
[]
[]
[]
[]
[]
[]
[]
[]
[]
[]
[]
[]
[]
[]
[]
[null,null,"1.3. Što je osnovna djelatnost vaše tvrtke i koji su vaši glavni proizvodi ili usluge koje ćete nuditi ili ih već nudite na tržištu?"]
[]
[]
[]
[]
[]
[]
[]
[]
[]
[]
[]
[]
[]
[]
[]
[null,null,"1.4. Ako ste već započeli s radom, molimo vas da opišete dosadašnji razvoj poslovanja te navedete ostvarene prihode, odnosno dobit ili\ngubitak ostvaren od osnutka tvrtke."]
[]
[]
[]
[]
[]
[]
[]
[]
[]
[]
[]
[]
[]
[]
[]
[null,null,"1.5. Gdje obavljate svoju djelatnost? Molimo vas da opišete mikro i makro lokaciju. Imate li potrebu za poslovnim prostorom? Ako je\nodgovor potvrdan, molim vas da ga opišete i navedete u čijem se vlasništvu prostor nalazi te ima li potrebe za adaptacijom."]
[]
[]
[]
[]
[]
[]
[]
[]
[]
[]
[]
[]
[]
[]
[]
[null,null,"1.6. Što vidite kao najveću prijetnju svom poslovanju te koje mjere poduzimate da biste ih smanjili? Koji su najveći rizici vezani uz\nupravljanje tvrtkom, a koji uz prodaju?"]
[]
[]
[]
[]
[]
[]
[]
[]
[]
[]
[]
[]
[]
[]
[]
[null,null,"1.7. Koji su planovi za daljnji razvoj i/ili širenje poslovanja?"]

{"sheet":"2. Analiza tržišta","index":2,"n_rows":76,"n_cols":3,"rows_kept":76,"cut":false,"hidden":false,"merged":[[75,2,75,14],[0,2,0,14],[15,2,15,14],[30,2,30,14],[45,2,45,14],[60,2,60,14]]}
[null,null,"2.1. Kojoj ciljanoj skupini kupaca/korisnika ste namijenili svoj proizvod ili uslugu (djeca, sportaši, mladi ljudi, umirovljenici, druge\ntvrtke, udruge, hoteli i restorani, institucije itd.)? Molimo vas da potkrijepite statističkim podacima i argumentima koje ste dobili analizom."]
[]
[]
[]
[]
[]
[]
[]
[]
[]
[]
[]
[]
[]
[]
[null,null,"2.2. Na kojem geografskom prostoru ćete djelovati i koliki broj kupaca svojih proizvoda ili usluga očekujete?  Molimo vas da\npotkrijepite statističkim podacima i argumentima."]
[]
[]
[]
[]
[]
[]
[]
[]
[]
[]
[]
[]
[]
[]
[null,null,"2.3. Opišite svoje prodajne kanale. Hoćete li svoje proizvode ili usluge plasirati preko maloprodajnih mjesta ili ćete prodavati izravno\nkrajnjem kupcu (primjerice, preko interneta ili vlastitog prodajnog mjesta)? Hoćete li imati veleprodaju i fokusirati se na taj način prodaje?"]
[]
[]
[]
[]
[]
[]
[]
[]
[]
[]
[]
[]
[]
[]
[null,null,"2.4. Tko su vaši dobavljači  te s kojim ćete tvrtkama surađivati kako biste kreirali svoj finalni proizvod ili uslugu?"]
[]
[]
[]
[]
[]
[]
[]
[]
[]
[]
[]
[]
[]
[]
[null,null,"2.5. Tko su vaši najveći konkurenti? Opišite njihovo poslovanje, istaknite aktualne trendove na tržištu te prednosti svoje poduzetničke\nideje u odnosu na konkurenciju."]
[]
[]
[]
[]
[]
[]
[]
[]
[]
[]
[]
[]
[]
[]
[null,null,"2.6. Koje marketinške aktivnosti i alate koristite ili planirate koristiti kako biste svoj proizvod ili uslugu približili ciljanoj skupini kupaca\n(oglašavanje, internetska stranica, sajmovi, prodajni uzorci…)?"]

{"sheet":"3. Prihodi od prodaje","index":3,"n_rows":64,"n_cols":17,"rows_kept":64,"cut":false,"hidden":false,"merged":[[15,2,15,16],[29,2,29,15],[43,2,43,16],[16,16,17,16],[30,2,31,2],[30,3,31,3],[44,2,45,2],[44,3,45,3],[44,16,45,16],[16,4,16,15],[30,4,30,15],[44,4,44,15],[16,2,17,2],[16,3,17,3]]}
[]
[null,null,"3.1. Opišite strukturu prihoda - objasnite kako ste došli do kalkulacije prodajnih količina i cijena za svaki pojedini proizvod/uslugu."]
[]
[]
[]
[]
[]
[]
[]
[]
[]
[]
[]
[]
[]
[null,null,"Tablica 2 - Prodaja u količinama"]
[null,null,"Naziv proizvoda ili usluge","Jedinica mjere","Prva godina",null,null,null,null,null,null,null,null,null,null,null,"Ukupno"]
[null,null,null,null,"Siječanj","Veljača","Ožujak","Travanj","Svibanj","Lipanj","Srpanj","Kolovoz","Rujan","Listopad","Studeni","Prosinac"]
[null,null,null,null,null,null,null,null,null,null,null,null,null,null,null,null,{"$f":"SUM(E19:P19)","v":0}]
[null,null,null,null,null,null,null,null,null,null,null,null,null,null,null,null,{"$f":"SUM(E20:P20)","v":0}]
[null,null,null,null,null,null,null,null,null,null,null,null,null,null,null,null,0]
[null,null,null,null,null,null,null,null,null,null,null,null,null,null,null,null,0]
[null,null,null,null,null,null,null,null,null,null,null,null,null,null,null,null,0]
[null,null,null,null,null,null,null,null,null,null,null,null,null,null,null,null,0]
[null,null,null,null,null,null,null,null,null,null,null,null,null,null,null,null,0]
[null,null,null,null,null,null,null,null,null,null,null,null,null,null,null,null,0]
[null,null,null,null,null,null,null,null,null,null,null,null,null,null,null,null,0]
[null,null,null,null,null,null,null,null,null,null,null,null,null,null,null,null,0]
[]
[null,null,"Tablica 3 - Cijene (EUR)"]
[null,null,"Naziv proizvoda ili usluge","Jedinica mjere","Prva godina"]
[null,null,null,null,"Siječanj","Veljača","Ožujak","Travanj","Svibanj","Lipanj","Srpanj","Kolovoz","Rujan","Listopad","Studeni","Prosinac"]
[null,null,{"$f":"T(C19)","v":""},{"$f":"T(D19)","v":""}]
[null,null,{"$f":"T(C20)","v":""},{"$f":"T(D20)","v":""}]
[null,null,{"$f":"T(C21)","v":""},""]
[null,null,{"$f":"T(C22)","v":""},""]
[null,null,{"$f":"T(C23)","v":""},""]
[null,null,"",""]
[null,null,"",""]
[null,null,"",""]
[null,null,"",""]
[null,null,"",""]
[]
[null,null,"Tablica 4 - Formiranje prihoda u prvoj godini"]
[null,null,"Naziv proizvoda ili usluge ","Jedinica mjere","Prva godina",null,null,null,null,null,null,null,null,null,null,null,"Ukupno"]
[null,null,null,null,"Siječanj","Veljača","Ožujak","Travanj","Svibanj","Lipanj","Srpanj","Kolovoz","Rujan","Listopad","Studeni","Prosinac"]
[null,null,{"$f":"T(C19)","v":""},{"$f":"T(D19)","v":""},{"$f":"E19*E33","v":0},{"$f":"F19*F33","v":0},{"$f":"G19*G33","v":0},0,0,0,0,0,0,0,0,0,{"$f":"SUM(E47:P47)","v":0}]
[null,null,{"$f":"T(C20)","v":""},{"$f":"T(D20)","v":""},{"$f":"E20*E34","v":0},0,0,0,0,0,0,0,0,0,0,0,{"$f":"SUM(E48:P48)","v":0}]
[null,null,"","",0,0,0,0,0,0,0,0,0,0,0,0,0]
[null,null,"","",0,0,0,0,0,0,0,0,0,0,0,0,0]
[null,null,"","",0,0,0,0,0,0,0,0,0,0,0,0,0]
[null,null,"","",0,0,0,0,0,0,0,0,0,0,0,0,0]
[null,null,"","",0,0,0,0,0,0,0,0,0,0,0,0,0]
[null,null,"","",0,0,0,0,0,0,0,0,0,0,0,0,0]
[null,null,"","",0,0,0,0,0,0,0,0,0,0,0,0,{"$f":"SUM(E55:P55)","v":0}]
[null,null,"","",0,0,0,0,0,0,0,0,0,0,0,0,{"$f":"SUM(E56:P56)","v":0}]
[null,null,"Ukupno:",{"$f":"T(D29)","v":""},{"$f":"SUM(E47:E56)","v":0},{"$f":"SUM(F47:F56)","v":0},0,0,0,0,0,0,0,0,0,0,{"$f":"SUM(Q47:Q56)","v":0}]
[]
[]
[null,null,"Tablica 5 - Projekcija prihoda po godinama*"]
[null,null,null,"Godina 1","Godina 2","Godina 3","Godina 4","Godina 5"]
[null,null,"Stopa rasta prihoda u odnosu na prethodnu godinu","-"]
[null,null,"Iznos povećanja prihoda u odnosu na prethodnu godinu","-",{"$f":"E64-D64","v":0},{"$f":"F64-E64","v":0},{"$f":"G64-F64","v":0},{"$f":"H64-G64","v":0}]
[null,null,"Ukupni prihod",{"$f":"Q57","v":0},{"$f":"D64*(1+E62)","v":0},{"$f":"E64*(1+F62)","v":0},{"$f":"F64*(1+G62)","v":0},{"$f":"G64*(1+H62)","v":0}]

{"sheet":"4. Rashodi poslovanja","index":4,"n_rows":86,"n_cols":16,"rows_kept":86,"cut":false,"hidden":false,"merged":[[14,2,14,15],[45,2,46,7],[77,2,77,7]]}
[]
[null,null,"4.1. Opišite strukturu rashoda. Objasnite kako ste došli do izračuna glavnih/najvećih stavki troškova?"]
[]
[]
[]
[]
[]
[]
[]
[]
[]
[]
[]
[]
[null,null,"Tablica 6 - Projekcija troškova poslovanja bez troškova zaposlenih i troškova amortizacije za prvu godinu"]
[null,null,"Vrsta troška","Siječanj","Veljača","Ožujak","Travanj","Svibanj","Lipanj","Srpanj","Kolovoz","Rujan","Listopad","Studeni","Prosinac","Ukupno"]
[null,null,"A) Materijalni troškovi",{"$f":"SUM(D18:D27)","v":0},0,0,0,0,0,0,0,0,0,0,0,{"$f":"SUM(D17:O17)","v":0}]
[null,null,"Troškovi sirovina i materijala",null,null,null,null,null,null,null,null,null,null,null,null,{"$f":"SUM(D18:O18)","v":0}]
[null,null,"Troškovi energenata (struja, grijanje)",null,null,null,null,null,null,null,null,null,null,null,null,0]
[null,null,"Troškovi rezervnih dijelova",null,null,null,null,null,null,null,null,null,null,null,null,0]
[null,null,"Troškovi ambalaže za pakiranje",null,null,null,null,null,null,null,null,null,null,null,null,0]
[null,null,"Materijal za čišćenje",null,null,null,null,null,null,null,null,null,null,null,null,0]
[null,null,"Uredski materijal",null,null,null,null,null,null,null,null,null,null,null,null,0]
[null,null,"Naziv troška",null,null,null,null,null,null,null,null,null,null,null,null,0]
[null,null,"Naziv troška",null,null,null,null,null,null,null,null,null,null,null,null,0]
[null,null,"Naziv troška",null,null,null,null,null,null,null,null,null,null,null,null,0]
[null,null,"Naziv troška",null,null,null,null,null,null,null,null,null,null,null,null,0]
[null,null,"B) Usluge",{"$f":"SUM(D29:D42)","v":0},{"$f":"SUM(E29:E42)","v":0},0,0,0,0,0,0,0,0,0,0,0]
[null,null,"Proizvodne usluge (kooperacija)",null,null,null,null,null,null,null,null,null,null,null,null,0]
[null,null,"Usluge održavanja",null,null,null,null,null,null,null,null,null,null,null,null,0]
[null,null,"Intelektualne usluge (računovodstvene, pravne...)",null,null,null,null,null,null,null,null,null,null,null,null,0]
[null,null,"Zakupnina i najamnina",null,null,null,null,null,null,null,null,null,null,null,null,0]
[null,null,"Usluge promocije",null,null,null,null,null,null,null,null,null,null,null,null,0]
[null,null,"Prijevozne usluge",null,null,null,null,null,null,null,null,null,null,null,null,0]
[null,null,"Usluge telefonije",null,null,null,null,null,null,null,null,null,null,null,null,0]
[null,null,"Usluge istraživanja tržišta",null,null,null,null,null,null,null,null,null,null,null,null,0]
[null,null,"Komunalne usluge (odvoz smeća, voda...)",null,null,null,null,null,null,null,null,null,null,null,null,0]
[null,null,"Troškovi liječničkih pregleda radnika",null,null,null,null,null,null,null,null,null,null,null,null,0]
[null,null,"Naziv troška",null,null,null,null,null,null,null,null,null,null,null,null,0]
[null,null,"Naziv troška",null,null,null,null,null,null,null,null,null,null,null,null,0]
[null,null,"Naziv troška",null,null,null,null,null,null,null,null,null,null,null,null,0]
[null,null,"Naziv troška",null,null,null,null,null,null,null,null,null,null,null,null,0]
[null,null,"C) Ostali rashodi",null,null,null,null,null,null,null,null,null,null,null,null,0]
[null,null,"Ukupno (A+B+C)",{"$f":"D17+D28+D43","v":0},{"$f":"E17+E28+E43","v":0},0,0,0,0,0,0,0,0,0,0,{"$f":"P17+P28+P43","v":0}]
[]
[null,null,"Tablica 7 - Projekcija troškova poslovanja bez troškova zaposlenih i troškova amortizacije po godinama"]
[]
[null,null,"Vrsta troška","Godina 1","Godina 2","Godina 3","Godina 4","Godina 5"]
[null,null,{"$f":"T(C17)","v":"A) Materijalni troškovi"},{"$f":"SUM(D50:D59)","v":0},{"$f":"SUM(E50:E59)","v":0},{"$f":"SUM(F50:F59)","v":0},{"$f":"SUM(G50:G59)","v":0},{"$f":"SUM(H50:H59)","v":0}]
[null,null,"Troškovi sirovina i materijala",{"$f":"P18","v":0},{"$f":"D50*(1+'3. Prihodi od prodaje'!E$62)","v":0},{"$f":"E50*(1+'3. Prihodi od prodaje'!F$62)","v":0},{"$f":"F50*(1+'3. Prihodi od prodaje'!G$62)","v":0},{"$f":"G50*(1+'3. Prihodi od prodaje'!H$62)","v":0}]
[null,null,"Troškovi energenata (struja, grijanje)",0,{"$f":"D51*(1+'3. Prihodi od prodaje'!E$62)","v":0},{"$f":"E51*(1+'3. Prihodi od prodaje'!F$62)","v":0},{"$f":"F51*(1+'3. Prihodi od prodaje'!G$62)","v":0},{"$f":"G51*(1+'3. Prihodi od prodaje'!H$62)","v":0}]
[null,null,"Troškovi rezervnih dijelova",0,{"$f":"D52*(1+'3. Prihodi od prodaje'!E$62)","v":0},{"$f":"E52*(1+'3. Prihodi od prodaje'!F$62)","v":0},{"$f":"F52*(1+'3. Prihodi od prodaje'!G$62)","v":0},{"$f":"G52*(1+'3. Prihodi od prodaje'!H$62)","v":0}]
[null,null,"Troškovi ambalaže za pakiranje",0,{"$f":"D53*(1+'3. Prihodi od prodaje'!E$62)","v":0},{"$f":"E53*(1+'3. Prihodi od prodaje'!F$62)","v":0},{"$f":"F53*(1+'3. Prihodi od prodaje'!G$62)","v":0},{"$f":"G53*(1+'3. Prihodi od prodaje'!H$62)","v":0}]
[null,null,"Materijal za čišćenje",0,{"$f":"D54","v":0},0,0,0]
[null,null,"Uredski materijal",0,0,0,0,0]
[null,null,"Naziv troška",0,{"$f":"D56*(1+'3. Prihodi od prodaje'!E$62)","v":0},{"$f":"E56*(1+'3. Prihodi od prodaje'!F$62)","v":0},{"$f":"F56*(1+'3. Prihodi od prodaje'!G$62)","v":0},{"$f":"G56*(1+'3. Prihodi od prodaje'!H$62)","v":0}]
[null,null,"Naziv troška",0,{"$f":"D57*(1+'3. Prihodi od prodaje'!E$62)","v":0},{"$f":"E57*(1+'3. Prihodi od prodaje'!F$62)","v":0},{"$f":"F57*(1+'3. Prihodi od prodaje'!G$62)","v":0},{"$f":"G57*(1+'3. Prihodi od prodaje'!H$62)","v":0}]
[null,null,"Naziv troška",0,{"$f":"D58*(1+'3. Prihodi od prodaje'!E$62)","v":0},{"$f":"E58*(1+'3. Prihodi od prodaje'!F$62)","v":0},{"$f":"F58*(1+'3. Prihodi od prodaje'!G$62)","v":0},{"$f":"G58*(1+'3. Prihodi od prodaje'!H$62)","v":0}]
[null,null,"Naziv troška",0,{"$f":"D59*(1+'3. Prihodi od prodaje'!E$62)","v":0},{"$f":"E59*(1+'3. Prihodi od prodaje'!F$62)","v":0},{"$f":"F59*(1+'3. Prihodi od prodaje'!G$62)","v":0},{"$f":"G59*(1+'3. Prihodi od prodaje'!H$62)","v":0}]
[null,null,"B) Usluge",{"$f":"SUM(D61:D74)","v":0},{"$f":"SUM(E61:E74)","v":0},{"$f":"SUM(F61:F74)","v":0},{"$f":"SUM(G61:G74)","v":0},{"$f":"SUM(H61:H74)","v":0}]
[null,null,"Proizvodne usluge (kooperacija)",{"$f":"P29","v":0},{"$f":"D61","v":0},0,0,0]
[null,null,"Usluge održavanja",0,0,0,0,0]
[null,null,{"$f":"T(C31)","v":"Intelektualne usluge (računovodstvene, pravne...)"},0,0,0,0,0]
[null,null,"Zakupnina i najamnina",0,0,0,0,0]
[null,null,"Usluge promocije",0,{"$f":"D65","v":0},{"$f":"E65","v":0},{"$f":"F65","v":0},{"$f":"G65","v":0}]
[null,null,"Prijevozne usluge",0,0,0,0,0]
[null,null,{"$f":"T(C35)","v":"Usluge telefonije"},0,0,0,0,0]
[null,null,"Usluge istraživanja tržišta",0,0,0,0,0]
[null,null,"Komunalne usluge (odvoz smeća, voda...)",0,0,0,0,0]
[null,null,"Troškovi liječničkih pregleda radnika",0,0,0,0,0]
[null,null,"Naziv troška",0,0,0,0,0]
[null,null,"Naziv troška",0,0,0,0,0]
[null,null,"Naziv troška",0,0,0,0,0]
[null,null,"Naziv troška",0,0,0,0,0]
[null,null,"C) Ostali rashodi",0,0,0,0,0]
[null,null,"Ukupno (A+B+C)",{"$f":"D49+D60+D75","v":0},{"$f":"E49+E60+E75","v":0},{"$f":"F49+F60+F75","v":0},{"$f":"G49+G60+G75","v":0},{"$f":"H49+H60+H75","v":0}]
[null,null,""]
[null,null,"Tablica 8 - Projekcija ukupnih rashoda"]
[null,null,"Rashodi","Godina 1","Godina 2","Godina 3","Godina 4","Godina 5"]
[null,null,"Materijalni troškovi",{"$f":"'4. Rashodi poslovanja'!D49","v":0},{"$f":"'4. Rashodi poslovanja'!E49","v":0},{"$f":"'4. Rashodi poslovanja'!F49","v":0},{"$f":"'4. Rashodi poslovanja'!G49","v":0},{"$f":"'4. Rashodi poslovanja'!H49","v":0}]
[null,null,"Vanjske usluge",{"$f":"'4. Rashodi poslovanja'!D60","v":0},{"$f":"'4. Rashodi poslovanja'!E60","v":0},{"$f":"'4. Rashodi poslovanja'!F60","v":0},{"$f":"'4. Rashodi poslovanja'!G60","v":0},{"$f":"'4. Rashodi poslovanja'!H60","v":0}]
[null,null,"Amortizacija",{"$f":"'6. Ulaganja i amortizacija'!G44","v":0},{"$f":"'6. Ulaganja i amortizacija'!H44","v":0},{"$f":"'6. Ulaganja i amortizacija'!I44","v":0},{"$f":"'6. Ulaganja i amortizacija'!J44","v":0},{"$f":"'6. Ulaganja i amortizacija'!K44","v":0}]
[null,null,"Troškovi zaposlenih",{"$f":"'5. Zaposlenici'!D63","v":0},{"$f":"'5. Zaposlenici'!E63","v":0},{"$f":"'5. Zaposlenici'!F63","v":0},{"$f":"'5. Zaposlenici'!G63","v":0},{"$f":"'5. Zaposlenici'!H63","v":0}]
[null,null,"Ostali rashodi",{"$f":"'4. Rashodi poslovanja'!D75","v":0},{"$f":"'4. Rashodi poslovanja'!E75","v":0},{"$f":"'4. Rashodi poslovanja'!F75","v":0},{"$f":"'4. Rashodi poslovanja'!G75","v":0},{"$f":"'4. Rashodi poslovanja'!H75","v":0}]
[null,null,"Financijski rashodi (kamate)",{"$f":"'8. Plan otplate'!E75","v":0},{"$f":"'8. Plan otplate'!E76","v":0},{"$f":"'8. Plan otplate'!E77","v":0},{"$f":"'8. Plan otplate'!E78","v":0},{"$f":"'8. Plan otplate'!E79","v":0}]
[null,null,"Ukupno",{"$f":"SUM(D80:D85)","v":0},{"$f":"SUM(E80:E85)","v":0},{"$f":"SUM(F80:F85)","v":0},{"$f":"SUM(G80:G85)","v":0},{"$f":"SUM(H80:H85)","v":0}]

{"sheet":"5. Zaposlenici","index":5,"n_rows":63,"n_cols":8,"rows_kept":63,"cut":false,"hidden":false,"merged":[[17,2,17,7],[29,2,29,7],[41,2,41,7],[53,2,53,7]]}
[]
[null,null,"5.1. Navedite strukturu i broj postojećih zaposlenika. Imate li u planu zapošljavati nove djelatnike u narednim godinama?"]
[]
[]
[]
[]
[]
[]
[]
[]
[]
[]
[]
[]
[]
[]
[]
[null,null,"Tablica 9 - Broj zaposlenih"]
[null,null,"Naziv radnog mjesta ","Godina 1","Godina 2","Godina 3","Godina 4","Godina 5"]
[]
[]
[]
[]
[]
[]
[]
[null,null,"Ukupno",{"$f":"SUM(D20:D26)","v":0},{"$f":"SUM(E20:E26)","v":0},{"$f":"SUM(F20:F26)","v":0},{"$f":"SUM(G20:G26)","v":0},{"$f":"SUM(H20:H26)","v":0}]
[]
[]
[null,null,"Tablica 10 - Angažiranje zaposlenih (broj mjeseci u godini)"]
[null,null,"Naziv radnog mjesta ","Godina 1","Godina 2","Godina 3","Godina 4","Godina 5"]
[null,null,{"$f":"T(C20)","v":""}]
[null,null,""]
[null,null,""]
[null,null,""]
[null,null,""]
[null,null,""]
[null,null,""]
[null,null,"Ukupno planirani mjeseci rada zaposlenih",{"$f":"D20*D32+D21*D33+D22*D34+D23*D35+D24*D36+D25*D37+D26*D38","v":0},{"$f":"E20*E32+E21*E33+E22*E34+E23*E35+E24*E36+E25*E37+E26*E38","v":0},{"$f":"F20*F32+F21*F33+F22*F34+F23*F35+F24*F36+F25*F37+F26*F38","v":0},{"$f":"G20*G32+G21*G33+G22*G34+G23*G35+G24*G36+G25*G37+G26*G38","v":0},{"$f":"H20*H32+H21*H33+H22*H34+H23*H35+H24*H36+H25*H37+H26*H38","v":0}]
[]
[]
[null,null,"Tablica 11 - Prosječni mjesečni trošak bruto II plaće"]
[null,null,"Naziv radnog mjesta ","Godina 1","Godina 2","Godina 3","Godina 4","Godina 5"]
[null,null,{"$f":"T(C20)","v":""}]
[null,null,""]
[null,null,""]
[null,null,""]
[null,null,""]
[null,null,""]
[null,null,""]
[null,null,"Prosječni mjesečni trošak bruto II plaće",{"$f":"D63/D39","v":{"$error":"#DIV/0!"}},{"$f":"E63/E39","v":{"$error":"#DIV/0!"}},{"$f":"F63/F39","v":{"$error":"#DIV/0!"}},{"$f":"G63/G39","v":{"$error":"#DIV/0!"}},{"$f":"H63/H39","v":{"$error":"#DIV/0!"}}]
[]
[]
[null,null,"Tablica 12 - Troškovi zaposlenih"]
[null,null,"Naziv radnog mjesta ","Godina 1","Godina 2","Godina 3","Godina 4","Godina 5"]
[null,null,{"$f":"T(C20)","v":""},{"$f":"D20*D32*D44","v":0},0,0,0,0]
[null,null,"",0,0,0,0,0]
[null,null,"",0,0,0,0,0]
[null,null,"",0,0,0,0,0]
[null,null,"",0,0,0,0,0]
[null,null,"",0,0,0,0,0]
[null,null,"",0,0,0,0,0]
[null,null,"Ukupno",{"$f":"SUM(D56:D62)","v":0},{"$f":"SUM(E56:E62)","v":0},{"$f":"SUM(F56:F62)","v":0},{"$f":"SUM(G56:G62)","v":0},{"$f":"SUM(H56:H62)","v":0}]

{"sheet":"6. Ulaganja i amortizacija","index":6,"n_rows":67,"n_cols":13,"rows_kept":67,"cut":false,"hidden":false,"merged":[[0,2,0,6],[70,2,70,6],[23,2,23,12],[48,2,48,3],[49,2,49,3],[50,2,50,3],[51,2,51,3],[52,2,52,3],[53,2,53,3],[54,2,54,3],[55,2,55,3],[56,2,56,3],[57,2,57,3],[65,2,65,3],[64,2,64,3],[58,2,58,3],[46,2,46,4],[47,2,47,3],[66,2,66,3],[63,2,63,3],[62,2,62,3],[61,2,61,3],[60,2,60,3],[59,2,59,3]]}
[null,null,"Tablica 13 - Ulaganja u osnovna sredstva"]
[null,null,"Opis","Jedinica mjere","Količina","Cijena","Iznos"]
[null,null,null,null,null,null,{"$f":"E3*F3","v":0}]
[null,null,null,null,null,null,{"$f":"E4*F4","v":0}]
[null,null,null,null,null,null,0]
[null,null,null,null,null,null,0]
[null,null,null,null,null,null,0]
[null,null,null,null,null,null,0]
[null,null,null,null,null,null,0]
[null,null,null,null,null,null,0]
[null,null,null,null,null,null,0]
[null,null,null,null,null,null,0]
[null,null,null,null,null,null,0]
[null,null,null,null,null,null,0]
[null,null,null,null,null,null,0]
[null,null,null,null,null,null,0]
[null,null,null,null,null,null,0]
[null,null,null,null,null,null,0]
[null,null,null,null,null,null,0]
[null,null,null,null,null,null,0]
[null,null,"Ukupno",null,null,null,{"$f":"SUM(G3:G20)","v":0}]
[]
[]
[null,null,"Tablica 14 - Obračun amortizacije"]
[null,null,"Naziv osnovnog sredstva","Nabavna ili sadašnja vrijednost","Amortizacijski vijek trajanja","Godišnji iznos amortizacije","Godina 1","Godina 2","Godina 3","Godina 4","Godina 5","Otpis","Ostatak vrijednosti"]
[null,null,{"$f":"T(C3)","v":""},{"$f":"G3","v":0},null,{"$f":"IF(E26=0,\" \",D26/E26)","v":" "},{"$f":"F26","v":" "},{"$f":"IF(SUM($G26:G26)>=$D26,0,F26)","v":0},{"$f":"IF(SUM($G26:H26)>=$D26,0,G26)","v":0},{"$f":"IF(SUM($G26:I26)>=$D26,0,H26)","v":0},{"$f":"IF(SUM($G26:J26)>=$D26,0,I26)","v":0},{"$f":"SUM(G26:K26)","v":0},{"$f":"D26-L26","v":0}]
[null,null,{"$f":"T(C4)","v":""},{"$f":"G4","v":0},null,{"$f":"IF(E27=0,\" \",D27/E27)","v":" "},{"$f":"F27","v":" "},{"$f":"IF(SUM($G27:G27)>=$D27,0,F27)","v":0},{"$f":"IF(SUM($G27:H27)>=$D27,0,G27)","v":0},{"$f":"IF(SUM($G27:I27)>=$D27,0,H27)","v":0},{"$f":"IF(SUM($G27:J27)>=$D27,0,I27)","v":0},0,0]
[null,null,"",0,null," "," ",{"$f":"IF(SUM($G28:G28)>=$D28,0,F28)","v":0},{"$f":"IF(SUM($G28:H28)>=$D28,0,G28)","v":0},{"$f":"IF(SUM($G28:I28)>=$D28,0,H28)","v":0},{"$f":"IF(SUM($G28:J28)>=$D28,0,I28)","v":0},0,0]
[null,null,"",0,null," "," ",{"$f":"IF(SUM($G29:G29)>=$D29,0,F29)","v":0},{"$f":"IF(SUM($G29:H29)>=$D29,0,G29)","v":0},{"$f":"IF(SUM($G29:I29)>=$D29,0,H29)","v":0},{"$f":"IF(SUM($G29:J29)>=$D29,0,I29)","v":0},0,0]
[null,null,"",0,null," "," ",{"$f":"IF(SUM($G30:G30)>=$D30,0,F30)","v":0},{"$f":"IF(SUM($G30:H30)>=$D30,0,G30)","v":0},{"$f":"IF(SUM($G30:I30)>=$D30,0,H30)","v":0},{"$f":"IF(SUM($G30:J30)>=$D30,0,I30)","v":0},0,0]
[null,null,"",0,null," "," ",{"$f":"IF(SUM($G31:G31)>=$D31,0,F31)","v":0},{"$f":"IF(SUM($G31:H31)>=$D31,0,G31)","v":0},{"$f":"IF(SUM($G31:I31)>=$D31,0,H31)","v":0},{"$f":"IF(SUM($G31:J31)>=$D31,0,I31)","v":0},0,0]
[null,null,"",0,null," "," ",{"$f":"IF(SUM($G32:G32)>=$D32,0,F32)","v":0},{"$f":"IF(SUM($G32:H32)>=$D32,0,G32)","v":0},{"$f":"IF(SUM($G32:I32)>=$D32,0,H32)","v":0},{"$f":"IF(SUM($G32:J32)>=$D32,0,I32)","v":0},0,0]
[null,null,"",0,null," "," ",{"$f":"IF(SUM($G33:G33)>=$D33,0,F33)","v":0},{"$f":"IF(SUM($G33:H33)>=$D33,0,G33)","v":0},{"$f":"IF(SUM($G33:I33)>=$D33,0,H33)","v":0},{"$f":"IF(SUM($G33:J33)>=$D33,0,I33)","v":0},0,0]
[null,null,"",0,null," "," ",{"$f":"IF(SUM($G34:G34)>=$D34,0,F34)","v":0},{"$f":"IF(SUM($G34:H34)>=$D34,0,G34)","v":0},{"$f":"IF(SUM($G34:I34)>=$D34,0,H34)","v":0},{"$f":"IF(SUM($G34:J34)>=$D34,0,I34)","v":0},0,0]
[null,null,"",0,null," "," ",{"$f":"IF(SUM($G35:G35)>=$D35,0,F35)","v":0},{"$f":"IF(SUM($G35:H35)>=$D35,0,G35)","v":0},{"$f":"IF(SUM($G35:I35)>=$D35,0,H35)","v":0},{"$f":"IF(SUM($G35:J35)>=$D35,0,I35)","v":0},0,0]
[null,null,"",0,null," "," ",{"$f":"IF(SUM($G36:G36)>=$D36,0,F36)","v":0},{"$f":"IF(SUM($G36:H36)>=$D36,0,G36)","v":0},{"$f":"IF(SUM($G36:I36)>=$D36,0,H36)","v":0},{"$f":"IF(SUM($G36:J36)>=$D36,0,I36)","v":0},0,0]
[null,null,"",0,null," "," ",{"$f":"IF(SUM($G37:G37)>=$D37,0,F37)","v":0},{"$f":"IF(SUM($G37:H37)>=$D37,0,G37)","v":0},{"$f":"IF(SUM($G37:I37)>=$D37,0,H37)","v":0},{"$f":"IF(SUM($G37:J37)>=$D37,0,I37)","v":0},0,0]
[null,null,"",0,null," "," ",{"$f":"IF(SUM($G38:G38)>=$D38,0,F38)","v":0},{"$f":"IF(SUM($G38:H38)>=$D38,0,G38)","v":0},{"$f":"IF(SUM($G38:I38)>=$D38,0,H38)","v":0},{"$f":"IF(SUM($G38:J38)>=$D38,0,I38)","v":0},0,0]
[null,null,"",0,null," "," ",{"$f":"IF(SUM($G39:G39)>=$D39,0,F39)","v":0},{"$f":"IF(SUM($G39:H39)>=$D39,0,G39)","v":0},{"$f":"IF(SUM($G39:I39)>=$D39,0,H39)","v":0},{"$f":"IF(SUM($G39:J39)>=$D39,0,I39)","v":0},0,0]
[null,null,"",0,null," "," ",{"$f":"IF(SUM($G40:G40)>=$D40,0,F40)","v":0},{"$f":"IF(SUM($G40:H40)>=$D40,0,G40)","v":0},{"$f":"IF(SUM($G40:I40)>=$D40,0,H40)","v":0},{"$f":"IF(SUM($G40:J40)>=$D40,0,I40)","v":0},0,0]
[null,null,"",0,null," "," ",{"$f":"IF(SUM($G41:G41)>=$D41,0,F41)","v":0},{"$f":"IF(SUM($G41:H41)>=$D41,0,G41)","v":0},{"$f":"IF(SUM($G41:I41)>=$D41,0,H41)","v":0},{"$f":"IF(SUM($G41:J41)>=$D41,0,I41)","v":0},0,0]
[null,null,"",0,null," "," ",{"$f":"IF(SUM($G42:G42)>=$D42,0,F42)","v":0},{"$f":"IF(SUM($G42:H42)>=$D42,0,G42)","v":0},{"$f":"IF(SUM($G42:I42)>=$D42,0,H42)","v":0},{"$f":"IF(SUM($G42:J42)>=$D42,0,I42)","v":0},0,0]
[null,null,"",0,null," "," ",{"$f":"IF(SUM($G43:G43)>=$D43,0,F43)","v":0},{"$f":"IF(SUM($G43:H43)>=$D43,0,G43)","v":0},{"$f":"IF(SUM($G43:I43)>=$D43,0,H43)","v":0},{"$f":"IF(SUM($G43:J43)>=$D43,0,I43)","v":0},0,0]
[null,null,"Ukupno",{"$f":"SUM(D26:D43)","v":0},"***",{"$f":"SUM(F26:F43)","v":0},0,0,0,0,0,0,0]
[]
[]
[null,null,"Tablica 15 - Ulaganja u obrtna sredstva"]
[null,null,"Opis",null,"Iznos"]
[]
[]
[]
[]
[]
[]
[]
[]
[]
[]
[]
[]
[]
[]
[]
[]
[]
[]
[null,null,"Ukupno",null,{"$f":"SUM(E49:E66)","v":0}]

{"sheet":"7. Izvori financiranja","index":7,"n_rows":43,"n_cols":5,"rows_kept":43,"cut":false,"hidden":false,"merged":[[0,2,0,4],[10,2,10,4],[17,2,17,4],[42,2,42,4]]}
[null,null,"Tablica 16 - Izvori financiranja"]
[null,null,"Izvor","Iznos","Udio (%)"]
[null,null,"Vlastita sredstva",null,{"$f":"D3/$D$8*100","v":{"$error":"#DIV/0!"}}]
[null,null,"Sredstva ostalih ulagača",null,{"$error":"#DIV/0!"}]
[null,null,"Imovina",null,{"$error":"#DIV/0!"}]
[null,null,"Bespovratna sredstva",null,{"$error":"#DIV/0!"}]
[null,null,"Kredit",{"$f":"D8-SUM(D3:D6)","v":0},{"$error":"#DIV/0!"}]
[null,null,"Ukupno",{"$f":"'6. Ulaganja i amortizacija'!G21+'6. Ulaganja i amortizacija'!E67","v":0},{"$error":"#DIV/0!"}]
[]
[]
[null,null,"Tablica 17 - Struktura ulaganja u osnovna i obrtna sredstva"]
[null,null,"Opis","Iznos","Udio (%)"]
[null,null,"Osnovna sredstva",{"$f":"'6. Ulaganja i amortizacija'!G21","v":0},{"$f":"D13/$D$15*100","v":{"$error":"#DIV/0!"}}]
[null,null,"Obrtna sredstva",{"$f":"'6. Ulaganja i amortizacija'!E67","v":0},{"$f":"D14/$D$15*100","v":{"$error":"#DIV/0!"}}]
[null,null,"Ukupno",{"$f":"SUM(D13:D14)","v":0},{"$f":"D15/$D$15*100","v":{"$error":"#DIV/0!"}}]
[]
[]
[null,null,"Tablica 18 - Podaci o upotrebi kreditnih sredstava"]
[null,null,"Opis ","Iznos","Udio(%)"]
[null,null,null,null,{"$f":"D20/$D$39*100","v":{"$error":"#DIV/0!"}}]
[null,null,null,null,{"$f":"D21/$D$39*100","v":{"$error":"#DIV/0!"}}]
[null,null,null,null,{"$error":"#DIV/0!"}]
[null,null,null,null,{"$error":"#DIV/0!"}]
[null,null,null,null,{"$error":"#DIV/0!"}]
[null,null,null,null,{"$error":"#DIV/0!"}]
[null,null,null,null,{"$error":"#DIV/0!"}]
[null,null,null,null,{"$error":"#DIV/0!"}]
[null,null,null,null,{"$error":"#DIV/0!"}]
[null,null,null,null,{"$error":"#DIV/0!"}]
[null,null,null,null,{"$error":"#DIV/0!"}]
[null,null,null,null,{"$error":"#DIV/0!"}]
[null,null,null,null,{"$error":"#DIV/0!"}]
[null,null,null,null,{"$error":"#DIV/0!"}]
[null,null,null,null,{"$error":"#DIV/0!"}]
[null,null,null,null,{"$error":"#DIV/0!"}]
[null,null,null,null,{"$error":"#DIV/0!"}]
[null,null,null,null,{"$error":"#DIV/0!"}]
[null,null,null,null,{"$error":"#DIV/0!"}]
[null,null,{"$f":"T('6. Ulaganja i amortizacija'!C21)","v":"Ukupno"},{"$f":"D7","v":0},{"$error":"#DIV/0!"}]
[]
[null,null,"Kontrolni broj*",{"$f":"SUM(D20:D38)-D39","v":0}]
[]
[null,null,"* Kontrolni broj mora biti 0."]

{"sheet":"8. Plan otplate","index":8,"n_rows":80,"n_cols":10,"rows_kept":80,"cut":false,"hidden":false,"merged":[[0,2,0,5],[7,2,7,4],[7,5,7,7],[7,8,7,9],[4,2,4,4],[72,2,72,5],[69,2,69,5],[3,2,3,4],[1,2,1,4],[2,2,2,4]]}
[null,null,"Tablica 19 - Kredit"]
[null,null,"Odobreni iznos kredita (EUR)",null,null,{"$f":"'7. Izvori financiranja'!D7","v":0}]
[null,null,"Godišnja kamata (%)"]
[null,null,"Broj rata (rok otplate u mjesecima)"]
[null,null,"Mjesečna glavnica",null,null,{"$f":"F2/F4","v":{"$error":"#DIV/0!"}}]
[]
[]
[null,null,"Tablica 20 - Plan otplate kredita"]
[null,null,"Broj rate","početak razdoblja","kraj razdoblja","broj dana ","stanje kredita (ukupna glavnica)","mjesečna glavnica","kamata","rata kredita"]
[null,null,1,"2023-01-01","2023-02-01",{"$f":"E10-D10","v":31},{"$f":"F2","v":0},{"$f":"IF(G10=0,0,$F$5)","v":0},{"$f":"G10*F10/360*$F$3/100","v":0},{"$f":"H10+I10","v":0}]
[null,null,2,"2023-02-01","2023-03-01",{"$f":"E11-D11","v":28},{"$f":"IF(G10-H10<0.1,0,G10-H10)","v":0},{"$f":"IF(G11=0,0,$F$5)","v":0},{"$f":"G11*F11/360*$F$3/100","v":0},{"$f":"H11+I11","v":0}]
[null,null,3,"2023-03-01","2023-04-01",31,{"$f":"IF(G11-H11<0.1,0,G11-H11)","v":0},{"$f":"IF(G12=0,0,$F$5)","v":0},0,0]
[null,null,4,"2023-04-01","2023-05-01",30,0,0,0,0]
[null,null,5,"2023-05-01","2023-06-01",31,0,0,0,0]
[null,null,6,"2023-06-01","2023-07-01",30,0,0,0,0]
[null,null,7,"2023-07-01","2023-08-01",31,0,0,0,0]
[null,null,8,"2023-08-01","2023-09-01",31,0,0,0,0]
[null,null,9,"2023-09-01","2023-10-01",30,0,0,0,0]
[null,null,10,"2023-10-01","2023-11-01",31,0,0,0,0]
[null,null,11,"2023-11-01","2023-12-01",30,0,0,0,0]
[null,null,12,"2023-12-01","2024-01-01",31,0,0,0,0]
[null,null,13,"2024-01-01","2024-02-01",31,0,0,0,0]
[null,null,14,"2024-02-01","2024-03-01",29,0,0,0,0]
[null,null,15,"2024-03-01","2024-04-01",31,0,0,0,0]
[null,null,16,"2024-04-01","2024-05-01",30,0,0,0,0]
[null,null,17,"2024-05-01","2024-06-01",31,0,0,0,0]
[null,null,18,"2024-06-01","2024-07-01",30,0,0,0,0]
[null,null,19,"2024-07-01","2024-08-01",31,0,0,0,0]
[null,null,20,"2024-08-01","2024-09-01",31,0,0,0,0]
[null,null,21,"2024-09-01","2024-10-01",30,0,0,0,0]
[null,null,22,"2024-10-01","2024-11-01",31,0,0,0,0]
[null,null,23,"2024-11-01","2024-12-01",30,0,0,0,0]
[null,null,24,"2024-12-01","2025-01-01",31,0,0,0,0]
[null,null,25,"2025-01-01","2025-02-01",31,0,0,0,0]
[null,null,26,"2025-02-01","2025-03-01",28,0,0,0,0]
[null,null,27,"2025-03-01","2025-04-01",31,0,0,0,0]
[null,null,28,"2025-04-01","2025-05-01",30,0,0,0,0]
[null,null,29,"2025-05-01","2025-06-01",31,0,0,0,0]
[null,null,30,"2025-06-01","2025-07-01",30,0,0,0,0]
[null,null,31,"2025-07-01","2025-08-01",31,0,0,0,0]
[null,null,32,"2025-08-01","2025-09-01",31,0,0,0,0]
[null,null,33,"2025-09-01","2025-10-01",30,0,0,0,0]
[null,null,34,"2025-10-01","2025-11-01",31,0,0,0,0]
[null,null,35,"2025-11-01","2025-12-01",30,0,0,0,0]
[null,null,36,"2025-12-01","2026-01-01",31,0,0,0,0]
[null,null,37,"2026-01-01","2026-02-01",31,0,0,0,0]
[null,null,38,"2026-02-01","2026-03-01",28,0,0,0,0]
[null,null,39,"2026-03-01","2026-04-01",31,0,0,0,0]
[null,null,40,"2026-04-01","2026-05-01",30,0,0,0,0]
[null,null,41,"2026-05-01","2026-06-01",31,0,0,0,0]
[null,null,42,"2026-06-01","2026-07-01",30,0,0,0,0]
[null,null,43,"2026-07-01","2026-08-01",31,0,0,0,0]
[null,null,44,"2026-08-01","2026-09-01",31,0,0,0,0]
[null,null,45,"2026-09-01","2026-10-01",30,0,0,0,0]
[null,null,46,"2026-10-01","2026-11-01",31,0,0,0,0]
[null,null,47,"2026-11-01","2026-12-01",30,0,0,0,0]
[null,null,48,"2026-12-01","2027-01-01",31,0,0,0,0]
[null,null,49,"2027-01-01","2027-02-01",31,0,0,0,0]
[null,null,50,"2027-02-01","2027-03-01",28,0,0,0,0]
[null,null,51,"2027-03-01","2027-04-01",31,0,0,0,0]
[null,null,52,"2027-04-01","2027-05-01",30,0,0,0,0]
[null,null,53,"2027-05-01","2027-06-01",31,0,0,0,0]
[null,null,54,"2027-06-01","2027-07-01",30,0,0,0,0]
[null,null,55,"2027-07-01","2027-08-01",31,0,0,0,0]
[null,null,56,"2027-08-01","2027-09-01",31,0,0,0,0]
[null,null,57,"2027-09-01","2027-10-01",30,0,0,0,0]
[null,null,58,"2027-10-01","2027-11-01",31,0,0,0,0]
[null,null,59,"2027-11-01","2027-12-01",30,0,0,0,0]
[null,null,60,"2027-12-01","2028-01-01",31,0,0,0,0]
[null,null,"UKUPNO",null,null,null,{"$f":"G69-H69","v":0},{"$f":"SUM(H10:H69)","v":0},{"$f":"SUM(I10:I69)","v":0},{"$f":"H70+I70","v":0}]
[]
[]
[null,null,"Tablica 21 - Rekapitulacija otplate kredita po godinama"]
[null,null,"Godina","Glavnica","Kamate","Rate"]
[null,null,"Godina 1",{"$f":"SUM(H10:H21)","v":0},{"$f":"SUM(I10:I21)","v":0},{"$f":"SUM(J10:J21)","v":0}]
[null,null,"Godina 2",{"$f":"SUM(H22:H33)","v":0},{"$f":"SUM(I22:I33)","v":0},{"$f":"SUM(J22:J33)","v":0}]
[null,null,"Godina 3",{"$f":"SUM(H34:H45)","v":0},{"$f":"SUM(I34:I45)","v":0},{"$f":"SUM(J34:J45)","v":0}]
[null,null,"Godina 4",{"$f":"SUM(H46:H57)","v":0},{"$f":"SUM(I46:I57)","v":0},{"$f":"SUM(J46:J57)","v":0}]
[null,null,"Godina 5",{"$f":"SUM(H58:H69)","v":0},{"$f":"SUM(I58:I69)","v":0},{"$f":"SUM(J58:J69)","v":0}]
[null,null,"Ukupno",{"$f":"SUM(D75:D79)","v":0},{"$f":"SUM(E75:E79)","v":0},{"$f":"SUM(F75:F79)","v":0}]

{"sheet":"9. Postojeći krediti","index":9,"n_rows":46,"n_cols":8,"rows_kept":46,"cut":false,"hidden":false,"merged":[[41,2,41,7],[15,2,15,4],[15,5,15,7]]}
[]
[null,null,"9.1. Opišite postojeća zaduženja svih vlasnika poslovnog subjekta. Navedite vrstu proizvoda koji vam je odobren u banci i neotplaćeni dio glavnice."]
[]
[]
[]
[]
[]
[]
[]
[]
[]
[]
[]
[]
[]
[null,null,"Tablica 22 - Otplata postojećih kredita"]
[null,null,"Naziv proizvoda","Godina 1","Godina 2","Godina 3","Godina 4","Godina 5"]
[null,null,"Glavnica"]
[null,null,"Kamata po kreditu"]
[null,null,"Ukupno",{"$f":"D18+D19","v":0},{"$f":"E18+E19","v":0},{"$f":"F18+F19","v":0},{"$f":"G18+G19","v":0},{"$f":"H18+H19","v":0}]
[]
[null,null,"Naziv proizvoda","Godina 1","Godina 2","Godina 3","Godina 4","Godina 5"]
[null,null,"Glavnica",0,0,0,0,0]
[null,null,"Kamata po kreditu",0,0,0,0,0]
[null,null,"Ukupno",{"$f":"D23+D24","v":0},{"$f":"E23+E24","v":0},{"$f":"F23+F24","v":0},{"$f":"G23+G24","v":0},{"$f":"H23+H24","v":0}]
[]
[null,null,"Naziv proizvoda","Godina 1","Godina 2","Godina 3","Godina 4","Godina 5"]
[null,null,"Glavnica",0,0,0,0,0]
[null,null,"Kamata po kreditu",0,0,0,0,0]
[null,null,"Ukupno",{"$f":"D28+D29","v":0},{"$f":"E28+E29","v":0},{"$f":"F28+F29","v":0},{"$f":"G28+G29","v":0},{"$f":"H28+H29","v":0}]
[]
[null,null,"Naziv kredita","Godina 1","Godina 2","Godina 3","Godina 4","Godina 5"]
[null,null,"Glavnica",0,0,0,0,0]
[null,null,"Kamata po kreditu",0,0,0,0,0]
[null,null,"Ukupno",{"$f":"D33+D34","v":0},{"$f":"E33+E34","v":0},{"$f":"F33+F34","v":0},{"$f":"G33+G34","v":0},{"$f":"H33+H34","v":0}]
[]
[null,null,"Ukupno otplata postojećih kredita","Godina 1","Godina 2","Godina 3","Godina 4","Godina 5"]
[null,null,"Glavnica",{"$f":"D18+D23+D28+D33","v":0},0,0,0,0]
[null,null,"Kamata po kreditu",0,0,0,0,0]
[null,null,"Ukupno",{"$f":"D38+D39","v":0},{"$f":"E38+E39","v":0},{"$f":"F38+F39","v":0},{"$f":"G38+G39","v":0},{"$f":"H38+H39","v":0}]
[]
[null,null,"OTPLATA TRAŽENOG KREDITA"]
[null,null,"Novo zaduženje","Godina 1","Godina 2","Godina 3","Godina 4","Godina 5"]
[null,null,"Glavnica",{"$f":"SUM('8. Plan otplate'!H10:H21)","v":0},{"$f":"SUM('8. Plan otplate'!H22:H33)","v":0},{"$f":"SUM('8. Plan otplate'!H34:H45)","v":0},{"$f":"SUM('8. Plan otplate'!H46:H57)","v":0},{"$f":"SUM('8. Plan otplate'!H58:H69)","v":0}]
[null,null,"Kamata po kreditu",{"$f":"SUM('8. Plan otplate'!I10:I21)","v":0},{"$f":"SUM('8. Plan otplate'!I22:I33)","v":0},{"$f":"SUM('8. Plan otplate'!I34:I45)","v":0},{"$f":"SUM('8. Plan otplate'!I46:I57)","v":0},{"$f":"SUM('8. Plan otplate'!I58:I69)","v":0}]
[null,null,"Ukupno",{"$f":"D44+D45","v":0},{"$f":"E44+E45","v":0},{"$f":"F44+F45","v":0},{"$f":"G44+G45","v":0},{"$f":"H44+H45","v":0}]

{"sheet":"10. Financijski pokazatelji","index":10,"n_rows":97,"n_cols":12,"rows_kept":97,"cut":false,"hidden":false,"merged":[[98,2,98,7],[63,2,63,8],[63,9,64,9],[76,2,76,7],[5,2,5,3],[5,4,6,4],[85,2,85,7]]}
[null,null,"Tablica 23 - Porez i prirez (u EUR)"]
[null,null,"Osnovni odbitak",null,530.89,null,"Opis","Godina 1","Godina 2","Godina 3","Godina 4","Godina 5"]
[null,null,"Osnovica za uzdržavane članove i djecu iznosi",null,331.81,null,"Dohodak po vlasniku",{"$f":"'3. Prihodi od prodaje'!D64-'4. Rashodi poslovanja'!D86","v":0},{"$f":"'3. Prihodi od prodaje'!E64-'4. Rashodi poslovanja'!E86","v":0},{"$f":"'3. Prihodi od prodaje'!F64-'4. Rashodi poslovanja'!F86","v":0},{"$f":"'3. Prihodi od prodaje'!G64-'4. Rashodi poslovanja'!G86","v":0},{"$f":"'3. Prihodi od prodaje'!H64-'4. Rashodi poslovanja'!H86","v":0}]
[null,null,null,null,null,null,"Osobni odbitak",{"$f":"$E$15","v":2388.96},{"$f":"$E$15","v":2388.96},2388.96,2388.96,2388.96]
[null,null,null,null,null,null,"Osnovica",{"$f":"H3-H4","v":-2388.96},{"$f":"I3-I4","v":-2388.96},-2388.96,-2388.96,-2388.96]
[null,null,"Godišnja porezna osnovica za godišnji dohodak",null,"Stopa poreza\nna dohodak",null,"Porezna osnovica I",{"$f":"IF(OR($C8+$D8=0,H$5<=0,H$5<$C8),0,IF(AND(H$5>$D8,$D8>0),$D8-$C8,H$5-$C8))","v":0},{"$f":"IF(OR($C8+$D8=0,I$5<=0,I$5<$C8),0,IF(AND(I$5>$D8,$D8>0),$D8-$C8,I$5-$C8))","v":0},0,0,0]
[null,null,"OD","DO",null,null,"Porezna osnovica II",{"$f":"IF(OR($C9+$D9=0,H$5<=0,H$5<$C9),0,IF(AND(H$5>$D9,$D9>0),$D9-$C9,H$5-$C9))","v":0},{"$f":"IF(OR($C9+$D9=0,I$5<=0,I$5<$C9),0,IF(AND(I$5>$D9,$D9>0),$D9-$C9,I$5-$C9))","v":0},0,0,0]
[null,null,0,47780.28,20,null,"",{"$f":"IF(OR($C10+$D10=0,H$5<=0,H$5<$C10),0,IF(AND(H$5>$D10,$D10>0),$D10-$C10,H$5-$C10))","v":0},0,0,0,0]
[null,null,47780.28,null,30,null,"",{"$f":"IF(OR($C11+$D11=0,H$5<=0,H$5<$C11),0,IF(AND(H$5>$D11,$D11>0),$D11-$C11,H$5-$C11))","v":0},0,0,0,0]
[null,null,null,null,null,null,"",{"$f":"IF(OR($C12+$D12=0,H$5<=0,H$5<$C12),0,IF(AND(H$5>$D12,$D12>0),$D12-$C12,H$5-$C12))","v":0},0,0,0,0]
[null,null,null,null,null,null,"",{"$f":"IF(OR($C13+$D13=0,H$5<=0,H$5<$C13),0,IF(AND(H$5>$D13,$D13>0),$D13-$C13,H$5-$C13))","v":0},0,0,0,0]
[null,null,null,null,null,null,"Porez 24 %",{"$f":"$E8*H6/100","v":0},{"$f":"$E8*I6/100","v":0},0,0,0]
[null,null,null,null,null,null,"Porez 36 %",{"$f":"$E9*H7/100","v":0},{"$f":"$E9*I7/100","v":0},0,0,0]
[null,null,null,null,null,null,"",{"$f":"$E10*H8/100","v":0},{"$f":"$E10*I8/100","v":0},0,0,0]
[null,null,"Osobni odbitak",null,{"$f":"(E2+(E17-1)*E3)*12","v":2388.96},null,"",{"$f":"$E11*H9/100","v":0},0,0,0,0]
[null,null,null,null,null,null,"",{"$f":"$E12*H10/100","v":0},0,0,0,0]
[null,null,"Faktor osobnog odbitka",null,null,null,null,{"$f":"$E13*H11/100","v":0},0,0,0,0]
[null,null,null,null,null,null,"",{"$f":"$E14*H12/100","v":0},0,0,0,0]
[null,null,null,null,null,null,"Ukupni godišnji porez",{"$f":"SUM(H12:H15)","v":0},{"$f":"SUM(I12:I15)","v":0},0,0,0]
[null,null,null,null,null,null,"Prirez",{"$f":"$E$21*H19/100","v":0},{"$f":"$E$21*I19/100","v":0},0,0,0]
[null,null,null,"Prirez",null,null,"Prirez i porez",{"$f":"H19+H20","v":0},{"$f":"I19+I20","v":0},0,0,0]
[null,null,null,null,null,null,"Neto plaća",{"$f":"H3-H21","v":0},{"$f":"I3-I21","v":0},0,0,0]
[]
[]
[]
[null,null,"Tablica 24 - Račun dohotka"]
[null,null,"Opis","Godina 1","Godina 2","Godina 3","Godina 4","Godina 5"]
[null,null,"Primici",{"$f":"'3. Prihodi od prodaje'!D64","v":0},{"$f":"'3. Prihodi od prodaje'!E64","v":0},{"$f":"'3. Prihodi od prodaje'!F64","v":0},{"$f":"'3. Prihodi od prodaje'!G64","v":0},{"$f":"'3. Prihodi od prodaje'!H64","v":0}]
[null,null,"Materijalni izdaci",{"$f":"'4. Rashodi poslovanja'!D49","v":0},{"$f":"'4. Rashodi poslovanja'!E49","v":0},{"$f":"'4. Rashodi poslovanja'!F49","v":0},{"$f":"'4. Rashodi poslovanja'!G49","v":0},{"$f":"'4. Rashodi poslovanja'!H49","v":0}]
[null,null,"Vanjske usluge",{"$f":"'4. Rashodi poslovanja'!D60","v":0},{"$f":"'4. Rashodi poslovanja'!E60","v":0},{"$f":"'4. Rashodi poslovanja'!F60","v":0},{"$f":"'4. Rashodi poslovanja'!G60","v":0},{"$f":"'4. Rashodi poslovanja'!H60","v":0}]
[null,null,"Ostali izdaci",{"$f":"'4. Rashodi poslovanja'!D43","v":0},{"$f":"'4. Rashodi poslovanja'!E43","v":0},{"$f":"'4. Rashodi poslovanja'!F43","v":0},{"$f":"'4. Rashodi poslovanja'!G43","v":0},{"$f":"'4. Rashodi poslovanja'!H43","v":0}]
[null,null,"Izdaci za zaposlene",{"$f":"'5. Zaposlenici'!D63","v":0},{"$f":"'5. Zaposlenici'!E63","v":0},{"$f":"'5. Zaposlenici'!F63","v":0},{"$f":"'5. Zaposlenici'!G63","v":0},{"$f":"'5. Zaposlenici'!H63","v":0}]
[null,null,"Amortizacija",{"$f":"'6. Ulaganja i amortizacija'!G44","v":0},{"$f":"'6. Ulaganja i amortizacija'!H44","v":0},{"$f":"'6. Ulaganja i amortizacija'!I44","v":0},{"$f":"'6. Ulaganja i amortizacija'!J44","v":0},{"$f":"'6. Ulaganja i amortizacija'!K44","v":0}]
[null,null,"Financijski izdaci (kamate)",{"$f":"'8. Plan otplate'!$E$75","v":0},{"$f":"'8. Plan otplate'!$E$76","v":0},{"$f":"'8. Plan otplate'!$E$77","v":0},{"$f":"'8. Plan otplate'!$E$78","v":0},{"$f":"'8. Plan otplate'!$E$79","v":0}]
[null,null,"Izdaci",{"$f":"SUM(D29:D34)","v":0},{"$f":"SUM(E29:E34)","v":0},0,0,0]
[null,null,"Dohodak",{"$f":"D28-D35","v":0},{"$f":"E28-E35","v":0},0,0,0]
[null,null,"Porez i prirez",{"$f":"H21","v":0},{"$f":"I21","v":0},0,0,0]
[null,null,"Godišnja plaća vlasnika",{"$f":"D36-D37","v":0},{"$f":"E36-E37","v":0},0,0,0]
[]
[]
[null,null,"Tablica 25 - Financijski tijek"]
[null,null,"Opis","Godina 1","Godina 2","Godina 3","Godina 4","Godina 5","Ostatak"]
[null,null,"Ukupni primici",{"$f":"SUM(D44:D50)","v":0},{"$f":"SUM(E44:E50)","v":0},0,0,0,{"$f":"SUM(I44:I50)","v":0}]
[null,null,"Ukupni prihodi",{"$f":"'10. Financijski pokazatelji'!D28","v":0},{"$f":"'10. Financijski pokazatelji'!E28","v":0},{"$f":"'10. Financijski pokazatelji'!F28","v":0},{"$f":"'10. Financijski pokazatelji'!G28","v":0},{"$f":"'10. Financijski pokazatelji'!H28","v":0},0]
[null,null,"Vlastita sredstva",{"$f":"'7. Izvori financiranja'!D3","v":0},0,0,0,0,0]
[null,null,"Sredstva ostalih ulagača",{"$f":"'7. Izvori financiranja'!D4","v":0},0,0,0,0,0]
[null,null,"Imovina",{"$f":"'7. Izvori financiranja'!D5","v":0},0,0,0,0,0]
[null,null,"Bespovratna sredstva",{"$f":"'7. Izvori financiranja'!D6","v":0},0,0,0,0,0]
[null,null,"Kredit",{"$f":"'7. Izvori financiranja'!D7","v":0},0,0,0,0,0]
[null,null,"Ostatak projekta",0,0,0,0,0,{"$f":"I51+I52","v":0}]
[null,null,"a) Osnovna sredstva",null,null,null,null,null,{"$f":"'6. Ulaganja i amortizacija'!M44","v":0}]
[null,null,"b) Obrtna sredstva",null,null,null,null,null,{"$f":"'6. Ulaganja i amortizacija'!D67","v":0}]
[null,null,"Ukupni izdaci",{"$f":"SUM(D54:D58)","v":0},0,0,0,0,0]
[null,null,"Ulaganje u osnovna sredstva",{"$f":"'6. Ulaganja i amortizacija'!G21","v":0},0,0,0,0]
[null,null,"Ulaganje u obrtna sredstva",{"$f":"'6. Ulaganja i amortizacija'!E67","v":0},0,0,0,0]
[null,null,"Izdaci poslovanja bez kamata i amortizacije",{"$f":"'4. Rashodi poslovanja'!D76+'5. Zaposlenici'!D63","v":0},{"$f":"'4. Rashodi poslovanja'!E76+'5. Zaposlenici'!E63","v":0},{"$f":"'4. Rashodi poslovanja'!F76+'5. Zaposlenici'!F63","v":0},{"$f":"'4. Rashodi poslovanja'!G76+'5. Zaposlenici'!G63","v":0},{"$f":"'4. Rashodi poslovanja'!H76+'5. Zaposlenici'!H63","v":0}]
[null,null,"Godišnja rata",{"$f":"'8. Plan otplate'!F75","v":0},{"$f":"'8. Plan otplate'!F76","v":0},{"$f":"'8. Plan otplate'!F77","v":0},{"$f":"'8. Plan otplate'!F78","v":0},{"$f":"'8. Plan otplate'!F79","v":0}]
[null,null,"Porezi i prirezi",{"$f":"'10. Financijski pokazatelji'!H21","v":0},{"$f":"'10. Financijski pokazatelji'!I21","v":0},{"$f":"'10. Financijski pokazatelji'!J21","v":0},{"$f":"'10. Financijski pokazatelji'!K21","v":0},{"$f":"'10. Financijski pokazatelji'!L21","v":0}]
[null,null,"Neto primici",{"$f":"D43-D53","v":0},0,0,0,0,0]
[null,null,"Kumulativ neto primitaka",{"$f":"D59","v":0},{"$f":"D60+E59","v":0},{"$f":"E60+F59","v":0},{"$f":"F60+G59","v":0},{"$f":"G60+H59","v":0},{"$f":"H60+I59","v":0}]
[]
[]
[]
[null,null,"Tablica 26 - Pokazatelji uspješnosti poslovanja",null,null,null,null,null,null,"Referentna vrijednost"]
[null,null,"Pokazatelj","Izračun","Godina 1","Godina 2","Godina 3","Godina 4","Godina 5"]
[null,null,"Ekonomičnost","Ukupni prihodi/Ukupni rashodi",{"$f":"'10. Financijski pokazatelji'!D28/'10. Financijski pokazatelji'!D35","v":{"$error":"#DIV/0!"}},{"$f":"'10. Financijski pokazatelji'!E28/'10. Financijski pokazatelji'!E35","v":{"$error":"#DIV/0!"}},{"$f":"'10. Financijski pokazatelji'!F28/'10. Financijski pokazatelji'!F35","v":{"$error":"#DIV/0!"}},{"$f":"'10. Financijski pokazatelji'!G28/'10. Financijski pokazatelji'!G35","v":{"$error":"#DIV/0!"}},{"$f":"'10. Financijski pokazatelji'!H28/'10. Financijski pokazatelji'!H35","v":{"$error":"#DIV/0!"}},"Veća od 1"]
[null,null,"Produktivnost","Ostvareni prihod / broj zaposlenih (kn)",{"$f":"'3. Prihodi od prodaje'!D64/'5. Zaposlenici'!D27","v":{"$error":"#DIV/0!"}},{"$f":"'3. Prihodi od prodaje'!E64/'5. Zaposlenici'!E27","v":{"$error":"#DIV/0!"}},{"$f":"'3. Prihodi od prodaje'!F64/'5. Zaposlenici'!F27","v":{"$error":"#DIV/0!"}},{"$f":"'3. Prihodi od prodaje'!G64/'5. Zaposlenici'!G27","v":{"$error":"#DIV/0!"}},{"$f":"'3. Prihodi od prodaje'!H64/'5. Zaposlenici'!H27","v":{"$error":"#DIV/0!"}},"Što veća"]
[null,null,"Dobit po zaposlenom","Dobit nakon poreza/ broj zaposlenih (kn)",{"$f":"'10. Financijski pokazatelji'!D36/'5. Zaposlenici'!D27","v":{"$error":"#DIV/0!"}},{"$f":"'10. Financijski pokazatelji'!E36/'5. Zaposlenici'!E27","v":{"$error":"#DIV/0!"}},{"$f":"'10. Financijski pokazatelji'!F36/'5. Zaposlenici'!F27","v":{"$error":"#DIV/0!"}},{"$f":"'10. Financijski pokazatelji'!G36/'5. Zaposlenici'!G27","v":{"$error":"#DIV/0!"}},{"$f":"'10. Financijski pokazatelji'!H36/'5. Zaposlenici'!H27","v":{"$error":"#DIV/0!"}},"Veća od 0"]
[null,null,"Rentabilnost ukupnih ulaganja","Dobit nakon poreza/ ukupno ulaganje",{"$f":"'10. Financijski pokazatelji'!D36/'7. Izvori financiranja'!$D$15","v":{"$error":"#DIV/0!"}},{"$f":"'10. Financijski pokazatelji'!E36/'7. Izvori financiranja'!$D$15","v":{"$error":"#DIV/0!"}},{"$f":"'10. Financijski pokazatelji'!F36/'7. Izvori financiranja'!$D$15","v":{"$error":"#DIV/0!"}},{"$f":"'10. Financijski pokazatelji'!G36/'7. Izvori financiranja'!$D$15","v":{"$error":"#DIV/0!"}},{"$f":"'10. Financijski pokazatelji'!H36/'7. Izvori financiranja'!$D$15","v":{"$error":"#DIV/0!"}},"Veća od 0"]
[null,null,"Rentabilnost vlastitih sredstava","Dobit nakon poreza/vlastita sredstva",{"$f":"'10. Financijski pokazatelji'!D36/(SUM('7. Izvori financiranja'!$D$3:$D$5))","v":{"$error":"#DIV/0!"}},{"$f":"'10. Financijski pokazatelji'!E36/(SUM('7. Izvori financiranja'!$D$3:$D$5))","v":{"$error":"#DIV/0!"}},{"$f":"'10. Financijski pokazatelji'!F36/(SUM('7. Izvori financiranja'!$D$3:$D$5))","v":{"$error":"#DIV/0!"}},{"$f":"'10. Financijski pokazatelji'!G36/(SUM('7. Izvori financiranja'!$D$3:$D$5))","v":{"$error":"#DIV/0!"}},{"$f":"'10. Financijski pokazatelji'!H36/(SUM('7. Izvori financiranja'!$D$3:$D$5))","v":{"$error":"#DIV/0!"}},"Veća od 0"]
[null,null,"Vlastito sudjelovanje","Vlastita sredstva/ukupno ulaganje",{"$f":"SUM('7. Izvori financiranja'!D3:D5)/'7. Izvori financiranja'!D8","v":{"$error":"#DIV/0!"}},{"$f":"E71","v":{"$error":"#DIV/0!"}},{"$f":"F71","v":{"$error":"#DIV/0!"}},{"$f":"G71","v":{"$error":"#DIV/0!"}},{"$f":"H71","v":{"$error":"#DIV/0!"}},"Veće od 0,5"]
[null,null,"Vrijeme povrata ulaganja","Ukupna ulaganja/(neto dobit+amortizacija)",{"$f":"('6. Ulaganja i amortizacija'!$G$21+'6. Ulaganja i amortizacija'!$E$67)/('10. Financijski pokazatelji'!D36+'10. Financijski pokazatelji'!D33)","v":{"$error":"#DIV/0!"}},{"$f":"('6. Ulaganja i amortizacija'!$G$21+'6. Ulaganja i amortizacija'!$E$67)/('10. Financijski pokazatelji'!E36+'10. Financijski pokazatelji'!E33)","v":{"$error":"#DIV/0!"}},{"$f":"('6. Ulaganja i amortizacija'!$G$21+'6. Ulaganja i amortizacija'!$E$67)/('10. Financijski pokazatelji'!F36+'10. Financijski pokazatelji'!F33)","v":{"$error":"#DIV/0!"}},{"$f":"('6. Ulaganja i amortizacija'!$G$21+'6. Ulaganja i amortizacija'!$E$67)/('10. Financijski pokazatelji'!G36+'10. Financijski pokazatelji'!G33)","v":{"$error":"#DIV/0!"}},{"$f":"('6. Ulaganja i amortizacija'!$G$21+'6. Ulaganja i amortizacija'!$E$67)/('10. Financijski pokazatelji'!H36+'10. Financijski pokazatelji'!H33)","v":{"$error":"#DIV/0!"}},"Manje od 5"]
[null,null,"Pokrivenost rate","(Kamate+neto dobit+amortizacija)/rate",{"$f":"('10. Financijski pokazatelji'!D36+'10. Financijski pokazatelji'!D34+'10. Financijski pokazatelji'!D33)/'8. Plan otplate'!$F$75","v":{"$error":"#DIV/0!"}},{"$f":"('10. Financijski pokazatelji'!E36+'10. Financijski pokazatelji'!E34+'10. Financijski pokazatelji'!E33)/'8. Plan otplate'!$F$75","v":{"$error":"#DIV/0!"}},{"$f":"('10. Financijski pokazatelji'!F36+'10. Financijski pokazatelji'!F34+'10. Financijski pokazatelji'!F33)/'8. Plan otplate'!$F$75","v":{"$error":"#DIV/0!"}},{"$f":"('10. Financijski pokazatelji'!G36+'10. Financijski pokazatelji'!G34+'10. Financijski pokazatelji'!G33)/'8. Plan otplate'!$F$75","v":{"$error":"#DIV/0!"}},{"$f":"('10. Financijski pokazatelji'!H36+'10. Financijski pokazatelji'!H34+'10. Financijski pokazatelji'!H33)/'8. Plan otplate'!$F$75","v":{"$error":"#DIV/0!"}},"Veće od 3"]
[]
[]
[]
[null,null,"Tablica 27 - Točka pokrića"]
[null,null,"Opis","Godina 1","Godina 2","Godina 3","Godina 4","Godina 5"]
[null,null,"Ukupni prihod",{"$f":"'10. Financijski pokazatelji'!D28","v":0},{"$f":"'10. Financijski pokazatelji'!E28","v":0},{"$f":"'10. Financijski pokazatelji'!F28","v":0},{"$f":"'10. Financijski pokazatelji'!G28","v":0},{"$f":"'10. Financijski pokazatelji'!H28","v":0}]
[null,null,"Varijabilni trošak",{"$f":"'4. Rashodi poslovanja'!D50+'4. Rashodi poslovanja'!D51+'4. Rashodi poslovanja'!D53+'4. Rashodi poslovanja'!D61+'4. Rashodi poslovanja'!D66","v":0},{"$f":"'4. Rashodi poslovanja'!E50+'4. Rashodi poslovanja'!E51+'4. Rashodi poslovanja'!E53+'4. Rashodi poslovanja'!E61+'4. Rashodi poslovanja'!E66","v":0},{"$f":"'4. Rashodi poslovanja'!F50+'4. Rashodi poslovanja'!F51+'4. Rashodi poslovanja'!F53+'4. Rashodi poslovanja'!F61+'4. Rashodi poslovanja'!F66","v":0},{"$f":"'4. Rashodi poslovanja'!G50+'4. Rashodi poslovanja'!G51+'4. Rashodi poslovanja'!G53+'4. Rashodi poslovanja'!G61+'4. Rashodi poslovanja'!G66","v":0},{"$f":"'4. Rashodi poslovanja'!H50+'4. Rashodi poslovanja'!H51+'4. Rashodi poslovanja'!H53+'4. Rashodi poslovanja'!H61+'4. Rashodi poslovanja'!H66","v":0}]
[null,null,"Fiksni trošak",{"$f":"'5. Zaposlenici'!D63+'6. Ulaganja i amortizacija'!G44+'10. Financijski pokazatelji'!D34+'4. Rashodi poslovanja'!D76-D80","v":0},{"$f":"'5. Zaposlenici'!E63+'6. Ulaganja i amortizacija'!H44+'10. Financijski pokazatelji'!E34+'4. Rashodi poslovanja'!E76-E80","v":0},{"$f":"'5. Zaposlenici'!F63+'6. Ulaganja i amortizacija'!I44+'10. Financijski pokazatelji'!F34+'4. Rashodi poslovanja'!F76-F80","v":0},{"$f":"'5. Zaposlenici'!G63+'6. Ulaganja i amortizacija'!J44+'10. Financijski pokazatelji'!G34+'4. Rashodi poslovanja'!G76-G80","v":0},{"$f":"'5. Zaposlenici'!H63+'6. Ulaganja i amortizacija'!K44+'10. Financijski pokazatelji'!H34+'4. Rashodi poslovanja'!H76-H80","v":0}]
[null,null,"Točka pokrića (%)",{"$f":"D81*100/(D79-D80)","v":{"$error":"#DIV/0!"}},{"$f":"E81*100/(E79-E80)","v":{"$error":"#DIV/0!"}},{"$f":"F81*100/(F79-F80)","v":{"$error":"#DIV/0!"}},{"$f":"G81*100/(G79-G80)","v":{"$error":"#DIV/0!"}},{"$f":"H81*100/(H79-H80)","v":{"$error":"#DIV/0!"}}]
[]
[]
[]
[null,null,"Tablica 28 - Analiza osjetljivost"]
[null,null,"Opis","Godina 1","Godina 2","Godina 3","Godina 4","Godina 5"]
[null,null,"Očekivana dobit prije poreza",{"$f":"'10. Financijski pokazatelji'!D36","v":0},{"$f":"'10. Financijski pokazatelji'!E36","v":0},{"$f":"'10. Financijski pokazatelji'!F36","v":0},{"$f":"'10. Financijski pokazatelji'!G36","v":0},{"$f":"'10. Financijski pokazatelji'!H36","v":0}]
[null,null,"Pad prihoda 5%",{"$f":"'3. Prihodi od prodaje'!D64/1.05-'4. Rashodi poslovanja'!D86","v":0},{"$f":"'3. Prihodi od prodaje'!E64/1.05-'4. Rashodi poslovanja'!E86","v":0},{"$f":"'3. Prihodi od prodaje'!F64/1.05-'4. Rashodi poslovanja'!F86","v":0},{"$f":"'3. Prihodi od prodaje'!G64/1.05-'4. Rashodi poslovanja'!G86","v":0},{"$f":"'3. Prihodi od prodaje'!H64/1.05-'4. Rashodi poslovanja'!H86","v":0}]
[null,null,"Rast rashoda za 5%",{"$f":"'3. Prihodi od prodaje'!D64-'4. Rashodi poslovanja'!D86*1.05","v":0},{"$f":"'3. Prihodi od prodaje'!E64-'4. Rashodi poslovanja'!E86*1.05","v":0},{"$f":"'3. Prihodi od prodaje'!F64-'4. Rashodi poslovanja'!F86*1.05","v":0},{"$f":"'3. Prihodi od prodaje'!G64-'4. Rashodi poslovanja'!G86*1.05","v":0},{"$f":"'3. Prihodi od prodaje'!H64-'4. Rashodi poslovanja'!H86*1.05","v":0}]
[null,null,"Rast rashoda i pad prihoda za 5%",{"$f":"'3. Prihodi od prodaje'!D64/1.05-'4. Rashodi poslovanja'!D86*1.05","v":0},{"$f":"'3. Prihodi od prodaje'!E64/1.05-'4. Rashodi poslovanja'!E86*1.05","v":0},{"$f":"'3. Prihodi od prodaje'!F64/1.05-'4. Rashodi poslovanja'!F86*1.05","v":0},{"$f":"'3. Prihodi od prodaje'!G64/1.05-'4. Rashodi poslovanja'!G86*1.05","v":0},{"$f":"'3. Prihodi od prodaje'!H64/1.05-'4. Rashodi poslovanja'!H86*1.05","v":0}]
[null,null,"Pad prihoda 10%",{"$f":"'3. Prihodi od prodaje'!D64/1.1-'4. Rashodi poslovanja'!D86","v":0},{"$f":"'3. Prihodi od prodaje'!E64/1.1-'4. Rashodi poslovanja'!E86","v":0},{"$f":"'3. Prihodi od prodaje'!F64/1.1-'4. Rashodi poslovanja'!F86","v":0},{"$f":"'3. Prihodi od prodaje'!G64/1.1-'4. Rashodi poslovanja'!G86","v":0},{"$f":"'3. Prihodi od prodaje'!H64/1.1-'4. Rashodi poslovanja'!H86","v":0}]
[null,null,"Rast rashoda za 10%",{"$f":"'3. Prihodi od prodaje'!D64-'4. Rashodi poslovanja'!D86*1.1","v":0},{"$f":"'3. Prihodi od prodaje'!E64-'4. Rashodi poslovanja'!E86*1.1","v":0},{"$f":"'3. Prihodi od prodaje'!F64-'4. Rashodi poslovanja'!F86*1.1","v":0},{"$f":"'3. Prihodi od prodaje'!G64-'4. Rashodi poslovanja'!G86*1.1","v":0},{"$f":"'3. Prihodi od prodaje'!H64-'4. Rashodi poslovanja'!H86*1.1","v":0}]
[null,null,"Rast rashoda i pad prihoda za 10%",{"$f":"'3. Prihodi od prodaje'!D64/1.1-'4. Rashodi poslovanja'!D86*1.1","v":0},{"$f":"'3. Prihodi od prodaje'!E64/1.1-'4. Rashodi poslovanja'!E86*1.1","v":0},{"$f":"'3. Prihodi od prodaje'!F64/1.1-'4. Rashodi poslovanja'!F86*1.1","v":0},{"$f":"'3. Prihodi od prodaje'!G64/1.1-'4. Rashodi poslovanja'!G86*1.1","v":0},{"$f":"'3. Prihodi od prodaje'!H64/1.1-'4. Rashodi poslovanja'!H86*1.1","v":0}]
[null,null,"Pad prihoda 15%",{"$f":"'3. Prihodi od prodaje'!D64/1.15-'4. Rashodi poslovanja'!D86","v":0},{"$f":"'3. Prihodi od prodaje'!E64/1.15-'4. Rashodi poslovanja'!E86","v":0},{"$f":"'3. Prihodi od prodaje'!F64/1.15-'4. Rashodi poslovanja'!F86","v":0},{"$f":"'3. Prihodi od prodaje'!G64/1.15-'4. Rashodi poslovanja'!G86","v":0},{"$f":"'3. Prihodi od prodaje'!H64/1.15-'4. Rashodi poslovanja'!H86","v":0}]
[null,null,"Rast rashoda za 15%",{"$f":"'3. Prihodi od prodaje'!D64-'4. Rashodi poslovanja'!D86*1.15","v":0},{"$f":"'3. Prihodi od prodaje'!E64-'4. Rashodi poslovanja'!E86*1.15","v":0},{"$f":"'3. Prihodi od prodaje'!F64-'4. Rashodi poslovanja'!F86*1.15","v":0},{"$f":"'3. Prihodi od prodaje'!G64-'4. Rashodi poslovanja'!G86*1.15","v":0},{"$f":"'3. Prihodi od prodaje'!H64-'4. Rashodi poslovanja'!H86*1.15","v":0}]
[null,null,"Rast rashoda i pad prihoda za 15%",{"$f":"'3. Prihodi od prodaje'!D64/1.15-'4. Rashodi poslovanja'!D86*1.15","v":0},{"$f":"'3. Prihodi od prodaje'!E64/1.15-'4. Rashodi poslovanja'!E86*1.15","v":0},{"$f":"'3. Prihodi od prodaje'!F64/1.15-'4. Rashodi poslovanja'!F86*1.15","v":0},{"$f":"'3. Prihodi od prodaje'!G64/1.15-'4. Rashodi poslovanja'!G86*1.15","v":0},{"$f":"'3. Prihodi od prodaje'!H64/1.15-'4. Rashodi poslovanja'!H86*1.15","v":0}]

{"sheet":"Management case","index":11,"n_rows":38,"n_cols":8,"rows_kept":38,"cut":false,"hidden":true,"merged":[[0,2,0,7]]}
[null,null,"Tablica 29 - Management case scenarij"]
[null,null,"Pretpostavke","Godina 1","Godina 2","Godina 3","Godina 4","Godina 5"]
[null,null,"Marža bruto dobiti (%)",{"$f":"D10/D7","v":{"$error":"#DIV/0!"}},{"$f":"E10/E7","v":{"$error":"#DIV/0!"}},{"$f":"F10/F7","v":{"$error":"#DIV/0!"}},{"$f":"G10/G7","v":{"$error":"#DIV/0!"}},{"$f":"H10/H7","v":{"$error":"#DIV/0!"}}]
[null,null,"Porast prihoda od osnovne djelatnosti u odnosu na pret. godinu (%)","-",{"$f":"'3. Prihodi od prodaje'!E62","v":0},{"$f":"'3. Prihodi od prodaje'!F62","v":0},{"$f":"'3. Prihodi od prodaje'!G62","v":0},{"$f":"'3. Prihodi od prodaje'!H62","v":0}]
[]
[null,null,"Projekcija RDG","Godina 1","Godina 2","Godina 3","Godina 4","Godina 5"]
[null,null,"Prihodi od osnovne djelatnosti",{"$f":"'3. Prihodi od prodaje'!D64","v":0},{"$f":"D7*(1+E4)","v":0},{"$f":"E7*(1+F4)","v":0},{"$f":"F7*(1+G4)","v":0},{"$f":"G7*(1+H4)","v":0}]
[null,null,"1. Ukupni prihodi",{"$f":"D7","v":0},{"$f":"E7","v":0},{"$f":"F7","v":0},{"$f":"G7","v":0},{"$f":"H7","v":0}]
[null,null,"2. Materijalni troškovi (sirovine & materijali, vanjske usluge)",{"$f":"'4. Rashodi poslovanja'!D49+'4. Rashodi poslovanja'!D60","v":0},{"$f":"'4. Rashodi poslovanja'!E49+'4. Rashodi poslovanja'!E60","v":0},{"$f":"'4. Rashodi poslovanja'!F49+'4. Rashodi poslovanja'!F60","v":0},{"$f":"'4. Rashodi poslovanja'!G49+'4. Rashodi poslovanja'!G60","v":0},{"$f":"'4. Rashodi poslovanja'!H49+'4. Rashodi poslovanja'!H60","v":0}]
[null,null,"3. Bruto dobit",{"$f":"D7-D9","v":0},{"$f":"E7-E9","v":0},{"$f":"F7-F9","v":0},{"$f":"G7-G9","v":0},{"$f":"H7-H9","v":0}]
[null,null,"Troškovi zaposlenih",{"$f":"'10. Financijski pokazatelji'!D32","v":0},{"$f":"'10. Financijski pokazatelji'!E32","v":0},{"$f":"'10. Financijski pokazatelji'!F32","v":0},{"$f":"'10. Financijski pokazatelji'!G32","v":0},{"$f":"'10. Financijski pokazatelji'!H32","v":0}]
[null,null,"Ostali troškovi",{"$f":"'4. Rashodi poslovanja'!D75","v":0},{"$f":"'4. Rashodi poslovanja'!E75","v":0},{"$f":"'4. Rashodi poslovanja'!F75","v":0},{"$f":"'4. Rashodi poslovanja'!G75","v":0},{"$f":"'4. Rashodi poslovanja'!H75","v":0}]
[null,null,"4. EBITDA",{"$f":"D10-(D11+D12)","v":0},{"$f":"E10-(E11+E12)","v":0},{"$f":"F10-(F11+F12)","v":0},{"$f":"G10-(G11+G12)","v":0},{"$f":"H10-(H11+H12)","v":0}]
[null,null,"Amortizacija",{"$f":"'6. Ulaganja i amortizacija'!G44","v":0},{"$f":"'6. Ulaganja i amortizacija'!H44","v":0},{"$f":"'6. Ulaganja i amortizacija'!I44","v":0},{"$f":"'6. Ulaganja i amortizacija'!J44","v":0},{"$f":"'6. Ulaganja i amortizacija'!K44","v":0}]
[null,null,"5. EBIT",{"$f":"D13-D14","v":0},{"$f":"E13-E14","v":0},{"$f":"F13-F14","v":0},{"$f":"G13-G14","v":0},{"$f":"H13-H14","v":0}]
[null,null,"Financijski rashodi",{"$f":"'9. Postojeći krediti'!D39+'9. Postojeći krediti'!D45","v":0},{"$f":"'9. Postojeći krediti'!E39+'9. Postojeći krediti'!E45","v":0},{"$f":"'9. Postojeći krediti'!F39+'9. Postojeći krediti'!F45","v":0},{"$f":"'9. Postojeći krediti'!G39+'9. Postojeći krediti'!G45","v":0},{"$f":"'9. Postojeći krediti'!H39+'9. Postojeći krediti'!H45","v":0}]
[null,null,"6. Dobit iz redovnih aktivnosti",{"$f":"D15-D16","v":0},{"$f":"E15-E16","v":0},{"$f":"F15-F16","v":0},{"$f":"G15-G16","v":0},{"$f":"H15-H16","v":0}]
[null,null,"7. Dobit prije oporezivanja",{"$f":"D17","v":0},{"$f":"E17","v":0},{"$f":"F17","v":0},{"$f":"G17","v":0},{"$f":"H17","v":0}]
[null,null,"Porez na dobit",{"$f":"IF(D18<0,0,IF(D18<=7500000,D18*0.12,IF(D18>7500000,D18*0.18)))","v":0},{"$f":"IF(E18<0,0,IF(E18<=7500000,E18*0.12,IF(E18>7500000,E18*0.18)))","v":0},{"$f":"IF(F18<0,0,IF(F18<=7500000,F18*0.12,IF(F18>7500000,F18*0.18)))","v":0},{"$f":"IF(G18<0,0,IF(G18<=7500000,G18*0.12,IF(G18>7500000,G18*0.18)))","v":0},{"$f":"IF(H18<0,0,IF(H18<=7500000,H18*0.12,IF(H18>7500000,H18*0.18)))","v":0}]
[null,null,"8. Dobit nakon oporezivanja",{"$f":"IFERROR((D18-D19),D18)","v":0},{"$f":"IFERROR((E18-E19),E18)","v":0},{"$f":"IFERROR((F18-F19),F18)","v":0},{"$f":"IFERROR((G18-G19),G18)","v":0},{"$f":"IFERROR((H18-H19),H18)","v":0}]
[]
[null,null,"Projekcija primarnih izvora otplate","Godina 1","Godina 2","Godina 3","Godina 4","Godina 5"]
[null,null,"EBITDA",{"$f":"D13","v":0},{"$f":"E13","v":0},{"$f":"F13","v":0},{"$f":"G13","v":0},{"$f":"H13","v":0}]
[null,null,"Otplata kamate za postojeća zaduženja",{"$f":"'9. Postojeći krediti'!D39","v":0},{"$f":"'9. Postojeći krediti'!E39","v":0},{"$f":"'9. Postojeći krediti'!F39","v":0},{"$f":"'9. Postojeći krediti'!G39","v":0},{"$f":"'9. Postojeći krediti'!H39","v":0}]
[null,null,"Otplata glavnice za postojeća zaduženja",{"$f":"'9. Postojeći krediti'!D38","v":0},{"$f":"'9. Postojeći krediti'!E38","v":0},{"$f":"'9. Postojeći krediti'!F38","v":0},{"$f":"'9. Postojeći krediti'!G38","v":0},{"$f":"'9. Postojeći krediti'!H38","v":0}]
[null,null,"izvanredne potrebe za obrtnim kapitalom",{"$f":"D33","v":0},0,0,0,0]
[null,null,"CAPEX (ulaganje u kapitalna sredstva)",{"$f":"D34","v":0},0,0,0,0]
[null,null,"Porez",{"$f":"D19","v":0},{"$f":"E19","v":0},{"$f":"F19","v":0},{"$f":"G19","v":0},{"$f":"H19","v":0}]
[null,null,"Slobodan novčani tijek",{"$f":"D23-D24-D25-D26-D27-D28","v":0},{"$f":"E23-E24-E25-E26-E27-E28","v":0},{"$f":"F23-F24-F25-F26-F27-F28","v":0},{"$f":"G23-G24-G25-G26-G27-G28","v":0},{"$f":"H23-H24-H25-H26-H27-H28","v":0}]
[null,null,"Servis kamate po traženom kreditu",{"$f":"SUM('9. Postojeći krediti'!D45)","v":0},{"$f":"SUM('9. Postojeći krediti'!E45)","v":0},{"$f":"SUM('9. Postojeći krediti'!F45)","v":0},{"$f":"SUM('9. Postojeći krediti'!G45)","v":0},{"$f":"SUM('9. Postojeći krediti'!H45)","v":0}]
[null,null,"Servis glavnice po traženom kreditu",{"$f":"'9. Postojeći krediti'!D44","v":0},{"$f":"'9. Postojeći krediti'!E44","v":0},{"$f":"'9. Postojeći krediti'!F44","v":0},{"$f":"'9. Postojeći krediti'!G44","v":0},{"$f":"'9. Postojeći krediti'!H44","v":0}]
[null,null,"Višak (manjak)",{"$f":"D29-D30-D31","v":0},{"$f":"E29-E30-E31","v":0},{"$f":"F29-F30-F31","v":0},{"$f":"G29-G30-G31","v":0},{"$f":"H29-H30-H31","v":0}]
[null,null,"Plasman kredita",{"$f":"'8. Plan otplate'!F2","v":0},0,0,0,0]
[null,null,"Vlastito učešće",{"$f":"'7. Izvori financiranja'!D3","v":0},0,0,0,0]
[null,null,"Višak ili manjak",{"$f":"D32+D33+D34","v":0},{"$f":"D35+E32+E33+E34","v":0},{"$f":"E35+F32+F33+F34","v":0},{"$f":"F35+G32+G33+G34","v":0},{"$f":"G35+H32+H33+H34","v":0}]
[]
[null,null,"DSCR",{"$f":"D23/((D24+D25+D30+D31)*1.04)","v":{"$error":"#DIV/0!"}},{"$f":"E23/((E24+E25+E30+E31)*1.04)","v":{"$error":"#DIV/0!"}},{"$f":"F23/((F24+F25+F30+F31)*1.04)","v":{"$error":"#DIV/0!"}},{"$f":"G23/((G24+G25+G30+G31)*1.04)","v":{"$error":"#DIV/0!"}},{"$f":"H23/((H24+H25+H30+H31)*1.04)","v":{"$error":"#DIV/0!"}}]
[null,null,null,{"$f":"IF(D37>=1,\"Klijent ima kreditnu sposobnost\",\"Klijent nema kreditnu sposobnost\")","v":{"$error":"#DIV/0!"}},{"$f":"IF(E37>=1,\"Klijent ima kreditnu sposobnost\",\"Klijent nema kreditnu sposobnost\")","v":{"$error":"#DIV/0!"}},{"$f":"IF(F37>=1,\"Klijent ima kreditnu sposobnost\",\"Klijent nema kreditnu sposobnost\")","v":{"$error":"#DIV/0!"}},{"$f":"IF(G37>=1,\"Klijent ima kreditnu sposobnost\",\"Klijent nema kreditnu sposobnost\")","v":{"$error":"#DIV/0!"}},{"$f":"IF(H37>=1,\"Klijent ima kreditnu sposobnost\",\"Klijent nema kreditnu sposobnost\")","v":{"$error":"#DIV/0!"}}]

{"sheet":"Bank case","index":12,"n_rows":38,"n_cols":8,"rows_kept":38,"cut":false,"hidden":true,"merged":[[0,2,0,7]]}
[null,null,"Tablica 30 - Bank case scenarij"]
[null,null,"Pretpostavke","Godina 1","Godina 2","Godina 3","Godina 4","Godina 5"]
[null,null,"Marža bruto dobiti (%)",{"$f":"D10/D7","v":{"$error":"#DIV/0!"}},{"$f":"E10/E7","v":{"$error":"#DIV/0!"}},{"$f":"F10/F7","v":{"$error":"#DIV/0!"}},{"$f":"G10/G7","v":{"$error":"#DIV/0!"}},{"$f":"H10/H7","v":{"$error":"#DIV/0!"}}]
[null,null,"Porast prihoda od osnovne djelatnosti u odnosu na pret. godinu (%)","-",{"$f":"'3. Prihodi od prodaje'!E62","v":0},{"$f":"'3. Prihodi od prodaje'!F62","v":0},{"$f":"'3. Prihodi od prodaje'!G62","v":0},{"$f":"'3. Prihodi od prodaje'!H62","v":0}]
[]
[null,null,"Projekcija RDG","Godina 1","Godina 2","Godina 3","Godina 4","Godina 5"]
[null,null,"Prihodi od osnovne djelatnosti",{"$f":"'Management case'!D7*(1-15%)","v":0},{"$f":"'Management case'!E7*(1-15%)","v":0},{"$f":"'Management case'!F7*(1-15%)","v":0},{"$f":"'Management case'!G7*(1-15%)","v":0},{"$f":"'Management case'!H7*(1-15%)","v":0}]
[null,null,"1. Ukupni prihodi",{"$f":"D7","v":0},{"$f":"E7","v":0},{"$f":"F7","v":0},{"$f":"G7","v":0},{"$f":"H7","v":0}]
[null,null,"2. Materijalni troškovi (sirovine i materijali, vanjske usluge)",{"$f":"'Management case'!D9","v":0},{"$f":"'Management case'!E9","v":0},{"$f":"'Management case'!F9","v":0},{"$f":"'Management case'!G9","v":0},{"$f":"'Management case'!H9","v":0}]
[null,null,"3. Bruto dobit",{"$f":"D8-D9","v":0},{"$f":"E8-E9","v":0},{"$f":"F8-F9","v":0},{"$f":"G8-G9","v":0},{"$f":"H8-H9","v":0}]
[null,null,"Troškovi zaposlenih",{"$f":"'Management case'!D11","v":0},{"$f":"'Management case'!E11","v":0},{"$f":"'Management case'!F11","v":0},{"$f":"'Management case'!G11","v":0},{"$f":"'Management case'!H11","v":0}]
[null,null,"Ostali troškovi",{"$f":"'Management case'!D12","v":0},{"$f":"'Management case'!E12","v":0},{"$f":"'Management case'!F12","v":0},{"$f":"'Management case'!G12","v":0},{"$f":"'Management case'!H12","v":0}]
[null,null,"4. EBITDA",{"$f":"D10-(D11+D12)","v":0},{"$f":"E10-(E11+E12)","v":0},{"$f":"F10-(F11+F12)","v":0},{"$f":"G10-(G11+G12)","v":0},{"$f":"H10-(H11+H12)","v":0}]
[null,null,"Amortizacija",{"$f":"'Management case'!D14","v":0},{"$f":"'Management case'!E14","v":0},{"$f":"'Management case'!F14","v":0},{"$f":"'Management case'!G14","v":0},{"$f":"'Management case'!H14","v":0}]
[null,null,"5. EBIT",{"$f":"D13-D14","v":0},{"$f":"E13-E14","v":0},{"$f":"F13-F14","v":0},{"$f":"G13-G14","v":0},{"$f":"H13-H14","v":0}]
[null,null,"Financijski rashodi",{"$f":"'9. Postojeći krediti'!D39+'9. Postojeći krediti'!D45","v":0},{"$f":"'9. Postojeći krediti'!E39+'9. Postojeći krediti'!E45","v":0},{"$f":"'9. Postojeći krediti'!F39+'9. Postojeći krediti'!F45","v":0},{"$f":"'9. Postojeći krediti'!G39+'9. Postojeći krediti'!G45","v":0},{"$f":"'9. Postojeći krediti'!H39+'9. Postojeći krediti'!H45","v":0}]
[null,null,"6. Dobit iz redovnih aktivnosti",{"$f":"D15-D16","v":0},{"$f":"E15-E16","v":0},{"$f":"F15-F16","v":0},{"$f":"G15-G16","v":0},{"$f":"H15-H16","v":0}]
[null,null,"7. Dobit prije oporezivanja",{"$f":"D17","v":0},{"$f":"E17","v":0},{"$f":"F17","v":0},{"$f":"G17","v":0},{"$f":"H17","v":0}]
[null,null,"Porez na dobit",{"$f":"IF(D18<0,0,IF(D18<=7500000,D18*0.12,IF(D18>7500000,D18*0.18)))","v":0},{"$f":"IF(E18<0,0,IF(E18<=7500000,E18*0.12,IF(E18>7500000,E18*0.18)))","v":0},{"$f":"IF(F18<0,0,IF(F18<=7500000,F18*0.12,IF(F18>7500000,F18*0.18)))","v":0},{"$f":"IF(G18<0,0,IF(G18<=7500000,G18*0.12,IF(G18>7500000,G18*0.18)))","v":0},{"$f":"IF(H18<0,0,IF(H18<=7500000,H18*0.12,IF(H18>7500000,H18*0.18)))","v":0}]
[null,null,"8. Dobit nakon oporezivanja",{"$f":"IFERROR((D18-D19),D18)","v":0},{"$f":"IFERROR((E18-E19),E18)","v":0},{"$f":"IFERROR((F18-F19),F18)","v":0},{"$f":"IFERROR((G18-G19),G18)","v":0},{"$f":"IFERROR((H18-H19),H18)","v":0}]
[]
[null,null,"Projekcija primarnih izvora otplate","Godina 1","Godina 2","Godina 3","Godina 4","Godina 5"]
[null,null,"EBITDA",{"$f":"D13","v":0},{"$f":"E13","v":0},{"$f":"F13","v":0},{"$f":"G13","v":0},{"$f":"H13","v":0}]
[null,null,"Otplata kamate za postojeća zaduženja",{"$f":"'9. Postojeći krediti'!D39","v":0},{"$f":"'9. Postojeći krediti'!E39","v":0},{"$f":"'9. Postojeći krediti'!F39","v":0},{"$f":"'9. Postojeći krediti'!G39","v":0},{"$f":"'9. Postojeći krediti'!H39","v":0}]
[null,null,"Otplata glavnice za postojeća zaduženja",{"$f":"'9. Postojeći krediti'!D38","v":0},{"$f":"'9. Postojeći krediti'!E38","v":0},{"$f":"'9. Postojeći krediti'!F38","v":0},{"$f":"'9. Postojeći krediti'!G38","v":0},{"$f":"'9. Postojeći krediti'!H38","v":0}]
[null,null,"izvanredne potrebe za obrtnim kapitalom",{"$f":"'Management case'!D26","v":0}]
[null,null,"CAPEX (ulaganje u kapitalna sredstva)",{"$f":"'Management case'!D27","v":0}]
[null,null,"Porez",{"$f":"D19","v":0},{"$f":"E19","v":0},{"$f":"F19","v":0},{"$f":"G19","v":0},{"$f":"H19","v":0}]
[null,null,"Slobodan novčani tijek",{"$f":"D23-D24-D25-D26-D27-D28","v":0},{"$f":"E23-E24-E25-E26-E27-E28","v":0},{"$f":"F23-F24-F25-F26-F27-F28","v":0},{"$f":"G23-G24-G25-G26-G27-G28","v":0},{"$f":"H23-H24-H25-H26-H27-H28","v":0}]
[null,null,"Servis kamate po traženom kreditu",{"$f":"'9. Postojeći krediti'!D45","v":0},{"$f":"'9. Postojeći krediti'!E45","v":0},{"$f":"'9. Postojeći krediti'!F45","v":0},{"$f":"'9. Postojeći krediti'!G45","v":0},{"$f":"'9. Postojeći krediti'!H45","v":0}]
[null,null,"Servis glavnice po traženom kreditu",{"$f":"'9. Postojeći krediti'!D44","v":0},{"$f":"'9. Postojeći krediti'!E44","v":0},{"$f":"'9. Postojeći krediti'!F44","v":0},{"$f":"'9. Postojeći krediti'!G44","v":0},{"$f":"'9. Postojeći krediti'!H44","v":0}]
[null,null,"Višak (manjak)",{"$f":"D29-D30-D31","v":0},{"$f":"E29-E30-E31","v":0},{"$f":"F29-F30-F31","v":0},{"$f":"G29-G30-G31","v":0},{"$f":"H29-H30-H31","v":0}]
[null,null,"Plasman kredita",{"$f":"'8. Plan otplate'!F2","v":0},0,0,0,0]
[null,null,"Vlastito učešće",{"$f":"'Management case'!D34","v":0},0,0,0,0]
[null,null,"Višak ili manjak",{"$f":"D32+D33+D34","v":0},{"$f":"D35+E32+E33+E34","v":0},{"$f":"E35+F32+F33+F34","v":0},{"$f":"F35+G32+G33+G34","v":0},{"$f":"G35+H32+H33+H34","v":0}]
[]
[null,null,"DSCR",{"$f":"D23/((D24+D25+D30+D31)*1.04)","v":{"$error":"#DIV/0!"}},{"$f":"E23/((E24+E25+E30+E31)*1.04)","v":{"$error":"#DIV/0!"}},{"$f":"F23/((F24+F25+F30+F31)*1.04)","v":{"$error":"#DIV/0!"}},{"$error":"#DIV/0!"},{"$error":"#DIV/0!"}]
[null,null,null,{"$f":"IF(D37>=1,\"Klijent ima kreditnu sposobnost\",\"Klijent nema kreditnu sposobnost\")","v":{"$error":"#DIV/0!"}},{"$f":"IF(E37>=1,\"Klijent ima kreditnu sposobnost\",\"Klijent nema kreditnu sposobnost\")","v":{"$error":"#DIV/0!"}},{"$f":"IF(F37>=1,\"Klijent ima kreditnu sposobnost\",\"Klijent nema kreditnu sposobnost\")","v":{"$error":"#DIV/0!"}},{"$f":"IF(G37>=1,\"Klijent ima kreditnu sposobnost\",\"Klijent nema kreditnu sposobnost\")","v":{"$error":"#DIV/0!"}},{"$f":"IF(H37>=1,\"Klijent ima kreditnu sposobnost\",\"Klijent nema kreditnu sposobnost\")","v":{"$error":"#DIV/0!"}}]

{"sheet":"Help","index":13,"n_rows":7,"n_cols":2,"rows_kept":7,"cut":false,"hidden":true,"merged":[]}
["NKV","vlasnik"]
["KV","vlasnik i direktor"]
["SSS","direktor"]
["VŠS","član uprave"]
["VSS","prokurist"]
["MAG"]
["DR"]